Department Family,Entity,Date,Expense type,Expense area,Supplier,Transaction number,Amount
DBT,ACAS,09/10/2023,PROFESSIONAL FEES,DDAT,ACS SYSTEMS UK LTD,POIN1811,406.8
DBT,ACAS,11/10/2023,AGENCY STAFF,DDAT,ACS SYSTEMS UK LTD,POIN1819,"6,316.80"
DBT,ACAS,11/10/2023,AGENCY STAFF,DDAT,ACS SYSTEMS UK LTD,POIN1819,"52,903.20"
DBT,ACAS,11/10/2023,AGENCY STAFF,DDAT,ACS SYSTEMS UK LTD,POIN1819,"-6,316.80"
DBT,ACAS,11/10/2023,AGENCY STAFF,DDAT,ACS SYSTEMS UK LTD,POIN1819,"-52,903.20"
DBT,ACAS,24/10/2023,SYSTEM/EQUIPMENT MAINTENANCE,DDAT,ACS SYSTEMS UK LTD,POIN1842,1.44
DBT,ACAS,24/10/2023,COURIERS,DDAT,ACS SYSTEMS UK LTD,POIN1842,84
DBT,ACAS,24/10/2023,SYSTEM/EQUIPMENT MAINTENANCE,DDAT,ACS SYSTEMS UK LTD,POIN1842,127.92
DBT,ACAS,24/10/2023,COURIERS,DDAT,ACS SYSTEMS UK LTD,POIN1842,"2,177.95"
DBT,ACAS,24/10/2023,SYSTEM/EQUIPMENT MAINTENANCE,DDAT,ACS SYSTEMS UK LTD,POIN1842,53.52
DBT,ACAS,24/10/2023,SYSTEM/EQUIPMENT MAINTENANCE,DDAT,ACS SYSTEMS UK LTD,POIN1842,127.92
DBT,ACAS,24/10/2023,COURIERS,DDAT,ACS SYSTEMS UK LTD,POIN1842,"6,104.57"
DBT,ACAS,24/10/2023,COURIERS,DDAT,ACS SYSTEMS UK LTD,POIN1842,378
DBT,ACAS,24/10/2023,PROFESSIONAL FEES,DDAT,ACS SYSTEMS UK LTD,POIN1842,456
DBT,ACAS,24/10/2023,SYSTEM/EQUIPMENT MAINTENANCE,DDAT,ACS SYSTEMS UK LTD,POIN1842,180
DBT,ACAS,24/10/2023,SYSTEM/EQUIPMENT MAINTENANCE,DDAT,ACS SYSTEMS UK LTD,POIN1842,-1.44
DBT,ACAS,24/10/2023,COURIERS,DDAT,ACS SYSTEMS UK LTD,POIN1842,-84
DBT,ACAS,24/10/2023,SYSTEM/EQUIPMENT MAINTENANCE,DDAT,ACS SYSTEMS UK LTD,POIN1842,-127.92
DBT,ACAS,24/10/2023,COURIERS,DDAT,ACS SYSTEMS UK LTD,POIN1842,"-2,177.95"
DBT,ACAS,24/10/2023,SYSTEM/EQUIPMENT MAINTENANCE,DDAT,ACS SYSTEMS UK LTD,POIN1842,-53.52
DBT,ACAS,24/10/2023,SYSTEM/EQUIPMENT MAINTENANCE,DDAT,ACS SYSTEMS UK LTD,POIN1842,-127.92
DBT,ACAS,24/10/2023,COURIERS,DDAT,ACS SYSTEMS UK LTD,POIN1842,"-6,104.57"
DBT,ACAS,24/10/2023,COURIERS,DDAT,ACS SYSTEMS UK LTD,POIN1842,-378
DBT,ACAS,24/10/2023,PROFESSIONAL FEES,DDAT,ACS SYSTEMS UK LTD,POIN1842,-456
DBT,ACAS,24/10/2023,SYSTEM/EQUIPMENT MAINTENANCE,DDAT,ACS SYSTEMS UK LTD,POIN1842,-180
DBT,ACAS,30/10/2023,COMPUTER HARDWARE,DDAT,ACS SYSTEMS UK LTD,POIN1867,518.4
DBT,ACAS,30/10/2023,COMPUTER HARDWARE,DDAT,ACS SYSTEMS UK LTD,POIN1867,57.6
DBT,ACAS,30/10/2023,COMPUTER HARDWARE,DDAT,ACS SYSTEMS UK LTD,POIN1867,-518.4
DBT,ACAS,30/10/2023,COMPUTER HARDWARE,DDAT,ACS SYSTEMS UK LTD,POIN1867,-57.6
DBT,ACAS,12/09/2023,CONFERENCE COSTS [NON - STAFF],CAC,Agiito,PINV2157,824
DBT,ACAS,25/09/2023,TEAM MEETINGS,DISPUTE,Agiito,PINV2159,"1,440.00"
DBT,ACAS,25/09/2023,TEAM MEETINGS,ADVICE,Agiito,PINV2159,481
DBT,ACAS,25/09/2023,TEAM MEETINGS,ADVICE,Agiito,PINV2159,104
DBT,ACAS,25/09/2023,VENUE HIRE (REC VAT),ADVICE,Agiito,PINV2159,495
DBT,ACAS,25/09/2023,CONFERENCE COSTS [NON - STAFF],CAC,Agiito,PINV2159,"1,079.80"
DBT,ACAS,25/09/2023,VENUE HIRE (REC VAT),ADVICE,Agiito,PINV2159,267.5
DBT,ACAS,25/09/2023,CATERING,ADVICE,Agiito,PINV2159,267.5
DBT,ACAS,25/09/2023,CATERING,ADVICE,Agiito,PINV2159,50
DBT,ACAS,25/10/2023,VENUE HIRE (REC VAT),ADVICE,Agiito,PINV2172,290
DBT,ACAS,25/10/2023,CATERING,ADVICE,Agiito,PINV2172,195
DBT,ACAS,25/10/2023,CATERING,ADVICE,Agiito,PINV2172,103.34
DBT,ACAS,25/10/2023,VENUE HIRE (REC VAT),ADVICE,Agiito,PINV2172,616
DBT,ACAS,25/10/2023,VENUE HIRE (REC VAT),ADVICE,Agiito,PINV2172,300
DBT,ACAS,25/10/2023,CATERING,ADVICE,Agiito,PINV2172,252
DBT,ACAS,25/10/2023,CATERING,ADVICE,Agiito,PINV2172,144
DBT,ACAS,25/10/2023,TEAM MEETINGS,ADVICE,Agiito,PINV2172,198.38
DBT,ACAS,25/10/2023,TEAM MEETINGS,ADVICE,Agiito,PINV2172,223.86
DBT,ACAS,25/10/2023,TEAM MEETINGS,ADVICE,Agiito,PINV2172,84.76
DBT,ACAS,25/10/2023,TEAM MEETINGS,DISPUTE,Agiito,PINV2172,720
DBT,ACAS,25/10/2023,VENUE HIRE (REC VAT),ADVICE,Agiito,PINV2172,260
DBT,ACAS,25/10/2023,CATERING,ADVICE,Agiito,PINV2172,260
DBT,ACAS,25/10/2023,CATERING,ADVICE,Agiito,PINV2172,65
DBT,ACAS,25/10/2023,TEAM MEETINGS,ADVICE,Agiito,PINV2172,198.38
DBT,ACAS,25/10/2023,TEAM MEETINGS,ADVICE,Agiito,PINV2172,223.86
DBT,ACAS,25/10/2023,TEAM MEETINGS,ADVICE,Agiito,PINV2172,84.76
DBT,ACAS,25/10/2023,TEAM MEETINGS,ADVICE,Agiito,PINV2172,-198.38
DBT,ACAS,25/10/2023,TEAM MEETINGS,ADVICE,Agiito,PINV2172,-223.86
DBT,ACAS,25/10/2023,TEAM MEETINGS,ADVICE,Agiito,PINV2172,-84.76
DBT,ACAS,25/10/2023,VENUE HIRE (REC VAT),ADVICE,Agiito,PINV2172,260.01
DBT,ACAS,25/10/2023,CATERING,ADVICE,Agiito,PINV2172,325
DBT,ACAS,25/10/2023,VENUE HIRE (REC VAT),ADVICE,Agiito,PINV2172,504
DBT,ACAS,25/10/2023,TEAM MEETINGS,ADVICE,Agiito,PINV2172,585
DBT,ACAS,25/10/2023,VENUE HIRE (REC VAT),ADVICE,Agiito,PINV2172,715
DBT,ACAS,11/10/2023,CONTRACTOR OFF-PAYROLL IN IR35,STRATEGY,ALEXANDER MANN SOLUTIONS LTD,POIN1815,"20,161.92"
DBT,ACAS,11/10/2023,CONTRACTOR OFF-PAYROLL IN IR35,STRATEGY,ALEXANDER MANN SOLUTIONS LTD,POIN1815,"-20,161.92"
DBT,ACAS,26/10/2023,CONTRACTOR OFF-PAYROLL IN IR35,STRATEGY,ALEXANDER MANN SOLUTIONS LTD,POIN1872,"6,300.60"
DBT,ACAS,05/10/2023,AGENCY STAFF,DISPUTE,ALEXANDER MANN SOLUTIONS LTD,PINV2105,329.4
DBT,ACAS,05/10/2023,AGENCY STAFF,DISPUTE,ALEXANDER MANN SOLUTIONS LTD,PINV2108,645.58
DBT,ACAS,12/10/2023,AGENCY STAFF,DISPUTE,ALEXANDER MANN SOLUTIONS LTD,PINV2124,648
DBT,ACAS,12/10/2023,AGENCY STAFF,DISPUTE,ALEXANDER MANN SOLUTIONS LTD,PINV2127,645.58
DBT,ACAS,19/10/2023,AGENCY STAFF,DISPUTE,ALEXANDER MANN SOLUTIONS LTD,PINV2179,645.58
DBT,ACAS,26/10/2023,AGENCY STAFF,DISPUTE,ALEXANDER MANN SOLUTIONS LTD,PINV2180,645.58
DBT,ACAS,26/10/2023,PROFESSIONAL FEES,DDAT,ATOS IT SERVICES UK LIMITED,POIN1850,"4,930.79"
DBT,ACAS,26/10/2023,PROFESSIONAL FEES,DDAT,ATOS IT SERVICES UK LIMITED,POIN1850,"4,930.79"
DBT,ACAS,26/10/2023,PROFESSIONAL FEES,DDAT,ATOS IT SERVICES UK LIMITED,POIN1850,"4,930.79"
DBT,ACAS,26/10/2023,PROFESSIONAL FEES,DDAT,ATOS IT SERVICES UK LIMITED,POIN1850,"4,930.79"
DBT,ACAS,26/10/2023,PROFESSIONAL FEES,DDAT,ATOS IT SERVICES UK LIMITED,POIN1850,"4,930.79"
DBT,ACAS,26/10/2023,PROFESSIONAL FEES,DDAT,ATOS IT SERVICES UK LIMITED,POIN1850,"4,930.79"
DBT,ACAS,26/10/2023,PROFESSIONAL FEES,DDAT,ATOS IT SERVICES UK LIMITED,POIN1850,"4,930.79"
DBT,ACAS,26/10/2023,PROFESSIONAL FEES,DDAT,ATOS IT SERVICES UK LIMITED,POIN1850,"4,930.79"
DBT,ACAS,26/10/2023,PROFESSIONAL FEES,DDAT,ATOS IT SERVICES UK LIMITED,POIN1850,"-4,930.79"
DBT,ACAS,26/10/2023,PROFESSIONAL FEES,DDAT,ATOS IT SERVICES UK LIMITED,POIN1850,"-4,930.79"
DBT,ACAS,26/10/2023,PROFESSIONAL FEES,DDAT,ATOS IT SERVICES UK LIMITED,POIN1850,"-4,930.79"
DBT,ACAS,26/10/2023,PROFESSIONAL FEES,DDAT,ATOS IT SERVICES UK LIMITED,POIN1850,"-4,930.79"
DBT,ACAS,26/10/2023,PROFESSIONAL FEES,DDAT,ATOS IT SERVICES UK LIMITED,POIN1850,"-4,930.79"
DBT,ACAS,26/10/2023,PROFESSIONAL FEES,DDAT,ATOS IT SERVICES UK LIMITED,POIN1850,"-4,930.79"
DBT,ACAS,26/10/2023,PROFESSIONAL FEES,DDAT,ATOS IT SERVICES UK LIMITED,POIN1850,"-4,930.79"
DBT,ACAS,26/10/2023,PROFESSIONAL FEES,DDAT,ATOS IT SERVICES UK LIMITED,POIN1850,"-4,930.79"
DBT,ACAS,26/10/2023,TELEPHONES,DDAT,ATOS IT SERVICES UK LIMITED,POIN1861,20.02
DBT,ACAS,26/10/2023,TELEPHONES,DDAT,ATOS IT SERVICES UK LIMITED,POIN1861,54.37
DBT,ACAS,26/10/2023,SOFTWARE & LICENCES,DDAT,ATOS IT SERVICES UK LIMITED,POIN1861,"2,214.00"
DBT,ACAS,26/10/2023,SOFTWARE & LICENCES,DDAT,ATOS IT SERVICES UK LIMITED,POIN1861,"2,406.00"
DBT,ACAS,26/10/2023,SOFTWARE & LICENCES,DDAT,ATOS IT SERVICES UK LIMITED,POIN1861,"11,103.80"
DBT,ACAS,26/10/2023,TELEPHONES,DDAT,ATOS IT SERVICES UK LIMITED,POIN1861,92.5
DBT,ACAS,26/10/2023,SOFTWARE & LICENCES,DDAT,ATOS IT SERVICES UK LIMITED,POIN1861,"2,214.00"
DBT,ACAS,26/10/2023,SOFTWARE & LICENCES,DDAT,ATOS IT SERVICES UK LIMITED,POIN1861,"2,406.00"
DBT,ACAS,26/10/2023,SOFTWARE & LICENCES,DDAT,ATOS IT SERVICES UK LIMITED,POIN1861,"11,103.80"
DBT,ACAS,26/10/2023,TELEPHONES,DDAT,ATOS IT SERVICES UK LIMITED,POIN1861,92.5
DBT,ACAS,26/10/2023,SOFTWARE & LICENCES,DDAT,ATOS IT SERVICES UK LIMITED,POIN1861,"2,214.00"
DBT,ACAS,26/10/2023,SOFTWARE & LICENCES,DDAT,ATOS IT SERVICES UK LIMITED,POIN1861,"2,214.00"
DBT,ACAS,26/10/2023,SOFTWARE & LICENCES,DDAT,ATOS IT SERVICES UK LIMITED,POIN1861,"2,214.00"
DBT,ACAS,26/10/2023,SOFTWARE & LICENCES,DDAT,ATOS IT SERVICES UK LIMITED,POIN1861,"2,214.00"
DBT,ACAS,26/10/2023,SOFTWARE & LICENCES,DDAT,ATOS IT SERVICES UK LIMITED,POIN1861,"2,214.00"
DBT,ACAS,26/10/2023,SOFTWARE & LICENCES,DDAT,ATOS IT SERVICES UK LIMITED,POIN1861,"2,214.00"
DBT,ACAS,26/10/2023,SOFTWARE & LICENCES,DDAT,ATOS IT SERVICES UK LIMITED,POIN1861,"2,406.00"
DBT,ACAS,26/10/2023,SOFTWARE & LICENCES,DDAT,ATOS IT SERVICES UK LIMITED,POIN1861,"2,406.00"
DBT,ACAS,26/10/2023,SOFTWARE & LICENCES,DDAT,ATOS IT SERVICES UK LIMITED,POIN1861,"2,406.00"
DBT,ACAS,26/10/2023,SOFTWARE & LICENCES,DDAT,ATOS IT SERVICES UK LIMITED,POIN1861,"2,406.00"
DBT,ACAS,26/10/2023,SOFTWARE & LICENCES,DDAT,ATOS IT SERVICES UK LIMITED,POIN1861,"2,406.00"
DBT,ACAS,26/10/2023,SOFTWARE & LICENCES,DDAT,ATOS IT SERVICES UK LIMITED,POIN1861,"2,406.00"
DBT,ACAS,26/10/2023,SOFTWARE & LICENCES,DDAT,ATOS IT SERVICES UK LIMITED,POIN1861,"11,103.80"
DBT,ACAS,26/10/2023,SOFTWARE & LICENCES,DDAT,ATOS IT SERVICES UK LIMITED,POIN1861,"11,103.80"
DBT,ACAS,26/10/2023,SOFTWARE & LICENCES,DDAT,ATOS IT SERVICES UK LIMITED,POIN1861,"11,103.80"
DBT,ACAS,26/10/2023,SOFTWARE & LICENCES,DDAT,ATOS IT SERVICES UK LIMITED,POIN1861,"11,103.80"
DBT,ACAS,26/10/2023,SOFTWARE & LICENCES,DDAT,ATOS IT SERVICES UK LIMITED,POIN1861,"11,103.80"
DBT,ACAS,26/10/2023,SOFTWARE & LICENCES,DDAT,ATOS IT SERVICES UK LIMITED,POIN1861,"11,103.80"
DBT,ACAS,26/10/2023,TELEPHONES,DDAT,ATOS IT SERVICES UK LIMITED,POIN1861,92.5
DBT,ACAS,26/10/2023,TELEPHONES,DDAT,ATOS IT SERVICES UK LIMITED,POIN1861,92.5
DBT,ACAS,26/10/2023,TELEPHONES,DDAT,ATOS IT SERVICES UK LIMITED,POIN1861,92.5
DBT,ACAS,26/10/2023,TELEPHONES,DDAT,ATOS IT SERVICES UK LIMITED,POIN1861,92.5
DBT,ACAS,26/10/2023,TELEPHONES,DDAT,ATOS IT SERVICES UK LIMITED,POIN1861,92.5
DBT,ACAS,26/10/2023,TELEPHONES,DDAT,ATOS IT SERVICES UK LIMITED,POIN1861,92.5
DBT,ACAS,26/10/2023,TELEPHONES,DDAT,ATOS IT SERVICES UK LIMITED,POIN1861,-20.02
DBT,ACAS,26/10/2023,TELEPHONES,DDAT,ATOS IT SERVICES UK LIMITED,POIN1861,-54.37
DBT,ACAS,26/10/2023,SOFTWARE & LICENCES,DDAT,ATOS IT SERVICES UK LIMITED,POIN1861,"-2,214.00"
DBT,ACAS,26/10/2023,SOFTWARE & LICENCES,DDAT,ATOS IT SERVICES UK LIMITED,POIN1861,"-2,406.00"
DBT,ACAS,26/10/2023,SOFTWARE & LICENCES,DDAT,ATOS IT SERVICES UK LIMITED,POIN1861,"-11,103.80"
DBT,ACAS,26/10/2023,TELEPHONES,DDAT,ATOS IT SERVICES UK LIMITED,POIN1861,-92.5
DBT,ACAS,26/10/2023,SOFTWARE & LICENCES,DDAT,ATOS IT SERVICES UK LIMITED,POIN1861,"-2,214.00"
DBT,ACAS,26/10/2023,SOFTWARE & LICENCES,DDAT,ATOS IT SERVICES UK LIMITED,POIN1861,"-2,406.00"
DBT,ACAS,26/10/2023,SOFTWARE & LICENCES,DDAT,ATOS IT SERVICES UK LIMITED,POIN1861,"-11,103.80"
DBT,ACAS,26/10/2023,TELEPHONES,DDAT,ATOS IT SERVICES UK LIMITED,POIN1861,-92.5
DBT,ACAS,26/10/2023,SOFTWARE & LICENCES,DDAT,ATOS IT SERVICES UK LIMITED,POIN1861,"-2,214.00"
DBT,ACAS,26/10/2023,SOFTWARE & LICENCES,DDAT,ATOS IT SERVICES UK LIMITED,POIN1861,"-2,214.00"
DBT,ACAS,26/10/2023,SOFTWARE & LICENCES,DDAT,ATOS IT SERVICES UK LIMITED,POIN1861,"-2,214.00"
DBT,ACAS,26/10/2023,SOFTWARE & LICENCES,DDAT,ATOS IT SERVICES UK LIMITED,POIN1861,"-2,214.00"
DBT,ACAS,26/10/2023,SOFTWARE & LICENCES,DDAT,ATOS IT SERVICES UK LIMITED,POIN1861,"-2,214.00"
DBT,ACAS,26/10/2023,SOFTWARE & LICENCES,DDAT,ATOS IT SERVICES UK LIMITED,POIN1861,"-2,214.00"
DBT,ACAS,26/10/2023,SOFTWARE & LICENCES,DDAT,ATOS IT SERVICES UK LIMITED,POIN1861,"-2,406.00"
DBT,ACAS,26/10/2023,SOFTWARE & LICENCES,DDAT,ATOS IT SERVICES UK LIMITED,POIN1861,"-2,406.00"
DBT,ACAS,26/10/2023,SOFTWARE & LICENCES,DDAT,ATOS IT SERVICES UK LIMITED,POIN1861,"-2,406.00"
DBT,ACAS,26/10/2023,SOFTWARE & LICENCES,DDAT,ATOS IT SERVICES UK LIMITED,POIN1861,"-2,406.00"
DBT,ACAS,26/10/2023,SOFTWARE & LICENCES,DDAT,ATOS IT SERVICES UK LIMITED,POIN1861,"-2,406.00"
DBT,ACAS,26/10/2023,SOFTWARE & LICENCES,DDAT,ATOS IT SERVICES UK LIMITED,POIN1861,"-2,406.00"
DBT,ACAS,26/10/2023,SOFTWARE & LICENCES,DDAT,ATOS IT SERVICES UK LIMITED,POIN1861,"-11,103.80"
DBT,ACAS,26/10/2023,SOFTWARE & LICENCES,DDAT,ATOS IT SERVICES UK LIMITED,POIN1861,"-11,103.80"
DBT,ACAS,26/10/2023,SOFTWARE & LICENCES,DDAT,ATOS IT SERVICES UK LIMITED,POIN1861,"-11,103.80"
DBT,ACAS,26/10/2023,SOFTWARE & LICENCES,DDAT,ATOS IT SERVICES UK LIMITED,POIN1861,"-11,103.80"
DBT,ACAS,26/10/2023,SOFTWARE & LICENCES,DDAT,ATOS IT SERVICES UK LIMITED,POIN1861,"-11,103.80"
DBT,ACAS,26/10/2023,SOFTWARE & LICENCES,DDAT,ATOS IT SERVICES UK LIMITED,POIN1861,"-11,103.80"
DBT,ACAS,26/10/2023,TELEPHONES,DDAT,ATOS IT SERVICES UK LIMITED,POIN1861,-92.5
DBT,ACAS,26/10/2023,TELEPHONES,DDAT,ATOS IT SERVICES UK LIMITED,POIN1861,-92.5
DBT,ACAS,26/10/2023,TELEPHONES,DDAT,ATOS IT SERVICES UK LIMITED,POIN1861,-92.5
DBT,ACAS,26/10/2023,TELEPHONES,DDAT,ATOS IT SERVICES UK LIMITED,POIN1861,-92.5
DBT,ACAS,26/10/2023,TELEPHONES,DDAT,ATOS IT SERVICES UK LIMITED,POIN1861,-92.5
DBT,ACAS,26/10/2023,TELEPHONES,DDAT,ATOS IT SERVICES UK LIMITED,POIN1861,-92.5
DBT,ACAS,12/10/2023,PROFESSIONAL FEES,DDAT,AXIS 12 LIMITED,POIN1825,"2,948.40"
DBT,ACAS,12/10/2023,PROFESSIONAL FEES,DDAT,AXIS 12 LIMITED,POIN1826,"2,058.00"
DBT,ACAS,12/10/2023,PROFESSIONAL FEES,DDAT,AXIS 12 LIMITED,POIN1827,"11,700.00"
DBT,ACAS,30/10/2023,REFUNDS,ADVICE,BAR 44 (TAPAS Y COPAS) LTD,PINV2188,"1,080.00"
DBT,ACAS,23/10/2023,PROFESSIONAL FEES,DDAT,BECHTLE LIMITED,POIN1846,456
DBT,ACAS,23/10/2023,COURIERS,DDAT,BECHTLE LIMITED,POIN1846,"1,890.00"
DBT,ACAS,23/10/2023,COURIERS,DDAT,BECHTLE LIMITED,POIN1846,"8,400.00"
DBT,ACAS,23/10/2023,SYSTEM/EQUIPMENT MAINTENANCE,DDAT,BECHTLE LIMITED,POIN1846,60
DBT,ACAS,23/10/2023,PROFESSIONAL FEES,DDAT,BECHTLE LIMITED,POIN1846,"1,197.00"
DBT,ACAS,23/10/2023,COURIERS,DDAT,BECHTLE LIMITED,POIN1846,"1,710.42"
DBT,ACAS,23/10/2023,SYSTEM/EQUIPMENT MAINTENANCE,DDAT,BECHTLE LIMITED,POIN1846,1.38
DBT,ACAS,23/10/2023,COMPUTER HARDWARE,DDAT,BECHTLE LIMITED,POIN1846,648
DBT,ACAS,23/10/2023,COMPUTER HARDWARE,DDAT,BECHTLE LIMITED,POIN1846,72
DBT,ACAS,11/10/2023,AGENCY STAFF,DDAT,BECHTLE LIMITED,PINV2122,"3,158.40"
DBT,ACAS,11/10/2023,AGENCY STAFF,DDAT,BECHTLE LIMITED,PINV2122,"3,158.40"
DBT,ACAS,20/10/2023,PROFESSIONAL FEES,DDAT,BIG BLUE DOOR,PINV2163,"1,350.00"
DBT,ACAS,28/07/2023,PUBLICITY,STRATEGY,BRANDWATCH,PINV2120,"5,745.60"
DBT,ACAS,09/10/2023,EXTERNAL LEARNING,ODHR,CAMBRIDGE EMPLOYMENT LAW,POIN1824,300
DBT,ACAS,04/10/2023,PHOTOCOPIERS,DDAT,Canon (UK) Ltd,PINV2103,"2,977.40"
DBT,ACAS,04/10/2023,PHOTOCOPIERS,DDAT,Canon (UK) Ltd,PINV2103,330.82
DBT,ACAS,05/10/2023,PHOTOCOPIERS,DDAT,Canon (UK) Ltd,PINV2107,492.48
DBT,ACAS,05/10/2023,PHOTOCOPIERS,DDAT,Canon (UK) Ltd,PINV2107,54.72
DBT,ACAS,05/10/2023,PHOTOCOPIERS,DDAT,Canon (UK) Ltd,PINV2107,"2,485.96"
DBT,ACAS,05/10/2023,PHOTOCOPIERS,DDAT,Canon (UK) Ltd,PINV2107,276.21
DBT,ACAS,03/09/2023,EXTERNAL LEARNING,ODHR,CHAMPIONS UK,POIN1802,"1,080.00"
DBT,ACAS,03/09/2023,EXTERNAL LEARNING,ODHR,CHAMPIONS UK,POIN1802,180
DBT,ACAS,04/10/2023,EXTERNAL LEARNING,ODHR,CIPD ENTERPRISES LTD(SUBSRIPTIONS),PINV2106,405
DBT,ACAS,04/10/2023,PUBLICITY,STRATEGY,CISION,PINV2119,"2,743.00"
DBT,ACAS,30/09/2023,PUBLIC TRANSPORT & PARKING,DISPUTE,CORPORATE TRAVEL MANAGEMENTLIMITED,PINV2125,25.5
DBT,ACAS,30/09/2023,PUBLIC TRANSPORT & PARKING,F&G,CORPORATE TRAVEL MANAGEMENTLIMITED,PINV2125,134
DBT,ACAS,30/09/2023,HOTEL EXPENSES,ADVICE,CORPORATE TRAVEL MANAGEMENTLIMITED,PINV2125,111.6
DBT,ACAS,30/09/2023,PUBLIC TRANSPORT & PARKING,ADVICE,CORPORATE TRAVEL MANAGEMENTLIMITED,PINV2125,83
DBT,ACAS,30/09/2023,PUBLIC TRANSPORT & PARKING,DISPUTE,CORPORATE TRAVEL MANAGEMENTLIMITED,PINV2125,348.6
DBT,ACAS,30/09/2023,PUBLIC TRANSPORT & PARKING,DISPUTE,CORPORATE TRAVEL MANAGEMENTLIMITED,PINV2125,92.7
DBT,ACAS,30/09/2023,PUBLIC TRANSPORT & PARKING,ODHR,CORPORATE TRAVEL MANAGEMENTLIMITED,PINV2125,196.8
DBT,ACAS,30/09/2023,PUBLIC TRANSPORT & PARKING,ODHR,CORPORATE TRAVEL MANAGEMENTLIMITED,PINV2125,206.4
DBT,ACAS,30/09/2023,PUBLIC TRANSPORT & PARKING,DISPUTE,CORPORATE TRAVEL MANAGEMENTLIMITED,PINV2125,246.7
DBT,ACAS,30/09/2023,PUBLIC TRANSPORT & PARKING,F&G,CORPORATE TRAVEL MANAGEMENTLIMITED,PINV2125,102.6
DBT,ACAS,30/09/2023,PUBLIC TRANSPORT & PARKING,DISPUTE,CORPORATE TRAVEL MANAGEMENTLIMITED,PINV2125,342.6
DBT,ACAS,30/09/2023,PUBLIC TRANSPORT & PARKING,DDAT,CORPORATE TRAVEL MANAGEMENTLIMITED,PINV2125,103.9
DBT,ACAS,30/09/2023,PUBLIC TRANSPORT & PARKING,F&G,CORPORATE TRAVEL MANAGEMENTLIMITED,PINV2125,155.6
DBT,ACAS,30/09/2023,PUBLIC TRANSPORT & PARKING,F&G,CORPORATE TRAVEL MANAGEMENTLIMITED,PINV2125,118
DBT,ACAS,30/09/2023,PUBLIC TRANSPORT & PARKING,F&G,CORPORATE TRAVEL MANAGEMENTLIMITED,PINV2125,169.4
DBT,ACAS,30/09/2023,PUBLIC TRANSPORT & PARKING,STRATEGY,CORPORATE TRAVEL MANAGEMENTLIMITED,PINV2125,198
DBT,ACAS,30/09/2023,PUBLIC TRANSPORT & PARKING,F&G,CORPORATE TRAVEL MANAGEMENTLIMITED,PINV2125,197
DBT,ACAS,30/09/2023,PUBLIC TRANSPORT & PARKING,STRATEGY,CORPORATE TRAVEL MANAGEMENTLIMITED,PINV2125,182.6
DBT,ACAS,30/09/2023,PUBLIC TRANSPORT & PARKING,STRATEGY,CORPORATE TRAVEL MANAGEMENTLIMITED,PINV2125,114
DBT,ACAS,30/09/2023,PUBLIC TRANSPORT & PARKING,DISPUTE,CORPORATE TRAVEL MANAGEMENTLIMITED,PINV2125,27
DBT,ACAS,30/09/2023,PUBLIC TRANSPORT & PARKING,STRATEGY,CORPORATE TRAVEL MANAGEMENTLIMITED,PINV2125,114.63
DBT,ACAS,30/09/2023,PUBLIC TRANSPORT & PARKING,STRATEGY,CORPORATE TRAVEL MANAGEMENTLIMITED,PINV2125,197.63
DBT,ACAS,30/09/2023,PUBLIC TRANSPORT & PARKING,F&G,CORPORATE TRAVEL MANAGEMENTLIMITED,PINV2125,102.3
DBT,ACAS,30/09/2023,PUBLIC TRANSPORT & PARKING,ADVICE,CORPORATE TRAVEL MANAGEMENTLIMITED,PINV2125,59.8
DBT,ACAS,30/09/2023,PUBLIC TRANSPORT & PARKING,F&G,CORPORATE TRAVEL MANAGEMENTLIMITED,PINV2125,68.5
DBT,ACAS,30/09/2023,PUBLIC TRANSPORT & PARKING,STRATEGY,CORPORATE TRAVEL MANAGEMENTLIMITED,PINV2125,272.3
DBT,ACAS,30/09/2023,PUBLIC TRANSPORT & PARKING,F&G,CORPORATE TRAVEL MANAGEMENTLIMITED,PINV2125,-238.8
DBT,ACAS,30/09/2023,HOTEL EXPENSES,ODHR,CORPORATE TRAVEL MANAGEMENTLIMITED,PINV2125,94.3
DBT,ACAS,30/09/2023,HOTEL EXPENSES,ODHR,CORPORATE TRAVEL MANAGEMENTLIMITED,PINV2125,94.3
DBT,ACAS,30/09/2023,HOTEL EXPENSES,ODHR,CORPORATE TRAVEL MANAGEMENTLIMITED,PINV2125,94.3
DBT,ACAS,30/09/2023,HOTEL EXPENSES,ODHR,CORPORATE TRAVEL MANAGEMENTLIMITED,PINV2125,94.3
DBT,ACAS,30/09/2023,HOTEL EXPENSES,DISPUTE,CORPORATE TRAVEL MANAGEMENTLIMITED,PINV2125,340
DBT,ACAS,30/09/2023,HOTEL EXPENSES,ODHR,CORPORATE TRAVEL MANAGEMENTLIMITED,PINV2125,94.3
DBT,ACAS,30/09/2023,PUBLIC TRANSPORT & PARKING,DDAT,CORPORATE TRAVEL MANAGEMENTLIMITED,PINV2125,275.2
DBT,ACAS,30/09/2023,PUBLIC TRANSPORT & PARKING,F&G,CORPORATE TRAVEL MANAGEMENTLIMITED,PINV2125,159
DBT,ACAS,30/09/2023,PUBLIC TRANSPORT & PARKING,DISPUTE,CORPORATE TRAVEL MANAGEMENTLIMITED,PINV2125,42.8
DBT,ACAS,30/09/2023,PUBLIC TRANSPORT & PARKING,F&G,CORPORATE TRAVEL MANAGEMENTLIMITED,PINV2125,171.5
DBT,ACAS,30/09/2023,PUBLIC TRANSPORT & PARKING,DISPUTE,CORPORATE TRAVEL MANAGEMENTLIMITED,PINV2125,37.7
DBT,ACAS,30/09/2023,PUBLIC TRANSPORT & PARKING,STRATEGY,CORPORATE TRAVEL MANAGEMENTLIMITED,PINV2125,-18.2
DBT,ACAS,30/09/2023,PUBLIC TRANSPORT & PARKING,DISPUTE,CORPORATE TRAVEL MANAGEMENTLIMITED,PINV2125,131.1
DBT,ACAS,30/09/2023,PUBLIC TRANSPORT & PARKING,STRATEGY,CORPORATE TRAVEL MANAGEMENTLIMITED,PINV2125,287.3
DBT,ACAS,30/09/2023,PUBLIC TRANSPORT & PARKING,DDAT,CORPORATE TRAVEL MANAGEMENTLIMITED,PINV2125,51.2
DBT,ACAS,30/09/2023,PUBLIC TRANSPORT & PARKING,DISPUTE,CORPORATE TRAVEL MANAGEMENTLIMITED,PINV2125,91.8
DBT,ACAS,30/09/2023,PUBLIC TRANSPORT & PARKING,F&G,CORPORATE TRAVEL MANAGEMENTLIMITED,PINV2125,100.4
DBT,ACAS,30/09/2023,PUBLIC TRANSPORT & PARKING,STRATEGY,CORPORATE TRAVEL MANAGEMENTLIMITED,PINV2125,41.8
DBT,ACAS,30/09/2023,PUBLIC TRANSPORT & PARKING,STRATEGY,CORPORATE TRAVEL MANAGEMENTLIMITED,PINV2125,26
DBT,ACAS,30/09/2023,PUBLIC TRANSPORT & PARKING,STRATEGY,CORPORATE TRAVEL MANAGEMENTLIMITED,PINV2125,63.4
DBT,ACAS,30/09/2023,PUBLIC TRANSPORT & PARKING,ADVICE,CORPORATE TRAVEL MANAGEMENTLIMITED,PINV2125,-21.8
DBT,ACAS,30/09/2023,PUBLIC TRANSPORT & PARKING,ADVICE,CORPORATE TRAVEL MANAGEMENTLIMITED,PINV2125,-16.8
DBT,ACAS,30/09/2023,PUBLIC TRANSPORT & PARKING,STRATEGY,CORPORATE TRAVEL MANAGEMENTLIMITED,PINV2125,110
DBT,ACAS,30/09/2023,PUBLIC TRANSPORT & PARKING,STRATEGY,CORPORATE TRAVEL MANAGEMENTLIMITED,PINV2125,110
DBT,ACAS,30/09/2023,PUBLIC TRANSPORT & PARKING,STRATEGY,CORPORATE TRAVEL MANAGEMENTLIMITED,PINV2125,11.2
DBT,ACAS,30/09/2023,PUBLIC TRANSPORT & PARKING,STRATEGY,CORPORATE TRAVEL MANAGEMENTLIMITED,PINV2125,7.6
DBT,ACAS,30/09/2023,HOTEL EXPENSES,ADVICE,CORPORATE TRAVEL MANAGEMENTLIMITED,PINV2125,66.82
DBT,ACAS,30/09/2023,HOTEL EXPENSES,ODHR,CORPORATE TRAVEL MANAGEMENTLIMITED,PINV2125,118.9
DBT,ACAS,30/09/2023,HOTEL EXPENSES,ODHR,CORPORATE TRAVEL MANAGEMENTLIMITED,PINV2125,81.09
DBT,ACAS,30/09/2023,PUBLIC TRANSPORT & PARKING,STRATEGY,CORPORATE TRAVEL MANAGEMENTLIMITED,PINV2125,43.4
DBT,ACAS,30/09/2023,HOTEL EXPENSES,ODHR,CORPORATE TRAVEL MANAGEMENTLIMITED,PINV2125,102
DBT,ACAS,30/09/2023,HOTEL EXPENSES,ODHR,CORPORATE TRAVEL MANAGEMENTLIMITED,PINV2125,102
DBT,ACAS,30/09/2023,HOTEL EXPENSES,ODHR,CORPORATE TRAVEL MANAGEMENTLIMITED,PINV2125,102
DBT,ACAS,30/09/2023,HOTEL EXPENSES,ODHR,CORPORATE TRAVEL MANAGEMENTLIMITED,PINV2125,102
DBT,ACAS,30/09/2023,HOTEL EXPENSES,ADVICE,CORPORATE TRAVEL MANAGEMENTLIMITED,PINV2125,66.67
DBT,ACAS,30/09/2023,PUBLIC TRANSPORT & PARKING,DISPUTE,CORPORATE TRAVEL MANAGEMENTLIMITED,PINV2125,117
DBT,ACAS,30/09/2023,PUBLIC TRANSPORT & PARKING,STRATEGY,CORPORATE TRAVEL MANAGEMENTLIMITED,PINV2125,214.5
DBT,ACAS,30/09/2023,PUBLIC TRANSPORT & PARKING,ADVICE,CORPORATE TRAVEL MANAGEMENTLIMITED,PINV2125,290.2
DBT,ACAS,30/09/2023,PUBLIC TRANSPORT & PARKING,DDAT,CORPORATE TRAVEL MANAGEMENTLIMITED,PINV2125,126
DBT,ACAS,30/09/2023,PUBLIC TRANSPORT & PARKING,ODHR,CORPORATE TRAVEL MANAGEMENTLIMITED,PINV2125,165.7
DBT,ACAS,30/09/2023,PUBLIC TRANSPORT & PARKING,F&G,CORPORATE TRAVEL MANAGEMENTLIMITED,PINV2125,106.2
DBT,ACAS,30/09/2023,PUBLIC TRANSPORT & PARKING,DISPUTE,CORPORATE TRAVEL MANAGEMENTLIMITED,PINV2125,125.7
DBT,ACAS,30/09/2023,PUBLIC TRANSPORT & PARKING,ADVICE,CORPORATE TRAVEL MANAGEMENTLIMITED,PINV2125,143
DBT,ACAS,30/09/2023,PUBLIC TRANSPORT & PARKING,DDAT,CORPORATE TRAVEL MANAGEMENTLIMITED,PINV2125,94
DBT,ACAS,30/09/2023,PUBLIC TRANSPORT & PARKING,F&G,CORPORATE TRAVEL MANAGEMENTLIMITED,PINV2125,-34.1
DBT,ACAS,30/09/2023,PUBLIC TRANSPORT & PARKING,F&G,CORPORATE TRAVEL MANAGEMENTLIMITED,PINV2125,140.9
DBT,ACAS,30/09/2023,PUBLIC TRANSPORT & PARKING,DDAT,CORPORATE TRAVEL MANAGEMENTLIMITED,PINV2125,155
DBT,ACAS,30/09/2023,HOTEL EXPENSES,ODHR,CORPORATE TRAVEL MANAGEMENTLIMITED,PINV2125,154.16
DBT,ACAS,30/09/2023,HOTEL EXPENSES,DISPUTE,CORPORATE TRAVEL MANAGEMENTLIMITED,PINV2125,165
DBT,ACAS,30/09/2023,HOTEL EXPENSES,F&G,CORPORATE TRAVEL MANAGEMENTLIMITED,PINV2125,75
DBT,ACAS,30/09/2023,HOTEL EXPENSES,ODHR,CORPORATE TRAVEL MANAGEMENTLIMITED,PINV2125,135.3
DBT,ACAS,30/09/2023,HOTEL EXPENSES,ODHR,CORPORATE TRAVEL MANAGEMENTLIMITED,PINV2125,102
DBT,ACAS,30/09/2023,HOTEL EXPENSES,F&G,CORPORATE TRAVEL MANAGEMENTLIMITED,PINV2125,90
DBT,ACAS,30/09/2023,HOTEL EXPENSES,F&G,CORPORATE TRAVEL MANAGEMENTLIMITED,PINV2125,90
DBT,ACAS,30/09/2023,HOTEL EXPENSES,F&G,CORPORATE TRAVEL MANAGEMENTLIMITED,PINV2125,90
DBT,ACAS,30/09/2023,HOTEL EXPENSES,F&G,CORPORATE TRAVEL MANAGEMENTLIMITED,PINV2125,90
DBT,ACAS,30/09/2023,HOTEL EXPENSES,ODHR,CORPORATE TRAVEL MANAGEMENTLIMITED,PINV2125,154.16
DBT,ACAS,30/09/2023,HOTEL EXPENSES,F&G,CORPORATE TRAVEL MANAGEMENTLIMITED,PINV2125,112.59
DBT,ACAS,30/09/2023,HOTEL EXPENSES,F&G,CORPORATE TRAVEL MANAGEMENTLIMITED,PINV2125,180
DBT,ACAS,30/09/2023,HOTEL EXPENSES,F&G,CORPORATE TRAVEL MANAGEMENTLIMITED,PINV2125,88
DBT,ACAS,30/09/2023,HOTEL EXPENSES,F&G,CORPORATE TRAVEL MANAGEMENTLIMITED,PINV2125,90
DBT,ACAS,30/09/2023,HOTEL EXPENSES,F&G,CORPORATE TRAVEL MANAGEMENTLIMITED,PINV2125,90
DBT,ACAS,30/09/2023,HOTEL EXPENSES,F&G,CORPORATE TRAVEL MANAGEMENTLIMITED,PINV2125,90
DBT,ACAS,30/09/2023,HOTEL EXPENSES,F&G,CORPORATE TRAVEL MANAGEMENTLIMITED,PINV2125,164.82
DBT,ACAS,30/09/2023,HOTEL EXPENSES,F&G,CORPORATE TRAVEL MANAGEMENTLIMITED,PINV2125,90
DBT,ACAS,30/09/2023,HOTEL EXPENSES,F&G,CORPORATE TRAVEL MANAGEMENTLIMITED,PINV2125,102.69
DBT,ACAS,30/09/2023,HOTEL EXPENSES,F&G,CORPORATE TRAVEL MANAGEMENTLIMITED,PINV2125,90
DBT,ACAS,30/09/2023,HOTEL EXPENSES,F&G,CORPORATE TRAVEL MANAGEMENTLIMITED,PINV2125,102.69
DBT,ACAS,30/09/2023,HOTEL EXPENSES,F&G,CORPORATE TRAVEL MANAGEMENTLIMITED,PINV2125,90
DBT,ACAS,30/09/2023,HOTEL EXPENSES,F&G,CORPORATE TRAVEL MANAGEMENTLIMITED,PINV2125,198
DBT,ACAS,30/09/2023,HOTEL EXPENSES,F&G,CORPORATE TRAVEL MANAGEMENTLIMITED,PINV2125,90
DBT,ACAS,30/09/2023,HOTEL EXPENSES,F&G,CORPORATE TRAVEL MANAGEMENTLIMITED,PINV2125,102.69
DBT,ACAS,30/09/2023,HOTEL EXPENSES,ODHR,CORPORATE TRAVEL MANAGEMENTLIMITED,PINV2125,154.16
DBT,ACAS,30/09/2023,HOTEL EXPENSES,ODHR,CORPORATE TRAVEL MANAGEMENTLIMITED,PINV2125,154.16
DBT,ACAS,30/09/2023,HOTEL EXPENSES,F&G,CORPORATE TRAVEL MANAGEMENTLIMITED,PINV2125,112.59
DBT,ACAS,30/09/2023,HOTEL EXPENSES,F&G,CORPORATE TRAVEL MANAGEMENTLIMITED,PINV2125,102.69
DBT,ACAS,30/09/2023,HOTEL EXPENSES,ADVICE,CORPORATE TRAVEL MANAGEMENTLIMITED,PINV2125,103.57
DBT,ACAS,30/09/2023,PUBLIC TRANSPORT & PARKING,ADVICE,CORPORATE TRAVEL MANAGEMENTLIMITED,PINV2125,120.1
DBT,ACAS,30/09/2023,PUBLIC TRANSPORT & PARKING,DISPUTE,CORPORATE TRAVEL MANAGEMENTLIMITED,PINV2125,107.85
DBT,ACAS,30/09/2023,PUBLIC TRANSPORT & PARKING,ADVICE,CORPORATE TRAVEL MANAGEMENTLIMITED,PINV2125,134.1
DBT,ACAS,30/09/2023,PUBLIC TRANSPORT & PARKING,ADVICE,CORPORATE TRAVEL MANAGEMENTLIMITED,PINV2125,131.8
DBT,ACAS,30/09/2023,PUBLIC TRANSPORT & PARKING,DISPUTE,CORPORATE TRAVEL MANAGEMENTLIMITED,PINV2125,"6,743.73"
DBT,ACAS,30/09/2023,PUBLIC TRANSPORT & PARKING,STRATEGY,CORPORATE TRAVEL MANAGEMENTLIMITED,PINV2125,103.9
DBT,ACAS,30/09/2023,PUBLIC TRANSPORT & PARKING,STRATEGY,CORPORATE TRAVEL MANAGEMENTLIMITED,PINV2125,103.9
DBT,ACAS,30/09/2023,PUBLIC TRANSPORT & PARKING,ODHR,CORPORATE TRAVEL MANAGEMENTLIMITED,PINV2125,269.7
DBT,ACAS,30/09/2023,HOTEL EXPENSES,ODHR,CORPORATE TRAVEL MANAGEMENTLIMITED,PINV2125,102
DBT,ACAS,30/09/2023,HOTEL EXPENSES,ODHR,CORPORATE TRAVEL MANAGEMENTLIMITED,PINV2125,102
DBT,ACAS,30/09/2023,HOTEL EXPENSES,F&G,CORPORATE TRAVEL MANAGEMENTLIMITED,PINV2125,200.9
DBT,ACAS,30/09/2023,HOTEL EXPENSES,ODHR,CORPORATE TRAVEL MANAGEMENTLIMITED,PINV2125,169.74
DBT,ACAS,30/09/2023,HOTEL EXPENSES,ODHR,CORPORATE TRAVEL MANAGEMENTLIMITED,PINV2125,159.9
DBT,ACAS,30/09/2023,HOTEL EXPENSES,ODHR,CORPORATE TRAVEL MANAGEMENTLIMITED,PINV2125,202.3
DBT,ACAS,30/09/2023,HOTEL EXPENSES,DISPUTE,CORPORATE TRAVEL MANAGEMENTLIMITED,PINV2125,202.3
DBT,ACAS,30/09/2023,HOTEL EXPENSES,STRATEGY,CORPORATE TRAVEL MANAGEMENTLIMITED,PINV2125,137.86
DBT,ACAS,30/09/2023,HOTEL EXPENSES,ODHR,CORPORATE TRAVEL MANAGEMENTLIMITED,PINV2125,169.74
DBT,ACAS,30/09/2023,HOTEL EXPENSES,ODHR,CORPORATE TRAVEL MANAGEMENTLIMITED,PINV2125,102
DBT,ACAS,30/09/2023,PUBLIC TRANSPORT & PARKING,DISPUTE,CORPORATE TRAVEL MANAGEMENTLIMITED,PINV2125,6.2
DBT,ACAS,30/09/2023,PUBLIC TRANSPORT & PARKING,DISPUTE,CORPORATE TRAVEL MANAGEMENTLIMITED,PINV2125,52.5
DBT,ACAS,30/09/2023,PUBLIC TRANSPORT & PARKING,DDAT,CORPORATE TRAVEL MANAGEMENTLIMITED,PINV2125,258.8
DBT,ACAS,30/09/2023,PUBLIC TRANSPORT & PARKING,ADVICE,CORPORATE TRAVEL MANAGEMENTLIMITED,PINV2125,290.2
DBT,ACAS,30/09/2023,PUBLIC TRANSPORT & PARKING,ADVICE,CORPORATE TRAVEL MANAGEMENTLIMITED,PINV2125,290.2
DBT,ACAS,30/09/2023,PUBLIC TRANSPORT & PARKING,DDAT,CORPORATE TRAVEL MANAGEMENTLIMITED,PINV2125,134
DBT,ACAS,30/09/2023,PUBLIC TRANSPORT & PARKING,DDAT,CORPORATE TRAVEL MANAGEMENTLIMITED,PINV2125,146
DBT,ACAS,30/09/2023,PUBLIC TRANSPORT & PARKING,STRATEGY,CORPORATE TRAVEL MANAGEMENTLIMITED,PINV2125,18.5
DBT,ACAS,30/09/2023,PUBLIC TRANSPORT & PARKING,STRATEGY,CORPORATE TRAVEL MANAGEMENTLIMITED,PINV2125,4.05
DBT,ACAS,30/09/2023,PUBLIC TRANSPORT & PARKING,DISPUTE,CORPORATE TRAVEL MANAGEMENTLIMITED,PINV2125,187.2
DBT,ACAS,30/09/2023,PUBLIC TRANSPORT & PARKING,ADVICE,CORPORATE TRAVEL MANAGEMENTLIMITED,PINV2125,39.5
DBT,ACAS,30/09/2023,PUBLIC TRANSPORT & PARKING,ADVICE,CORPORATE TRAVEL MANAGEMENTLIMITED,PINV2125,61.7
DBT,ACAS,30/09/2023,PUBLIC TRANSPORT & PARKING,ADVICE,CORPORATE TRAVEL MANAGEMENTLIMITED,PINV2125,145.1
DBT,ACAS,30/09/2023,PUBLIC TRANSPORT & PARKING,DISPUTE,CORPORATE TRAVEL MANAGEMENTLIMITED,PINV2125,187.2
DBT,ACAS,30/09/2023,PUBLIC TRANSPORT & PARKING,DDAT,CORPORATE TRAVEL MANAGEMENTLIMITED,PINV2125,191.7
DBT,ACAS,30/09/2023,PUBLIC TRANSPORT & PARKING,DDAT,CORPORATE TRAVEL MANAGEMENTLIMITED,PINV2125,105.8
DBT,ACAS,30/09/2023,PUBLIC TRANSPORT & PARKING,STRATEGY,CORPORATE TRAVEL MANAGEMENTLIMITED,PINV2125,135.1
DBT,ACAS,30/09/2023,PUBLIC TRANSPORT & PARKING,STRATEGY,CORPORATE TRAVEL MANAGEMENTLIMITED,PINV2125,119.1
DBT,ACAS,30/09/2023,PUBLIC TRANSPORT & PARKING,DDAT,CORPORATE TRAVEL MANAGEMENTLIMITED,PINV2125,152
DBT,ACAS,30/09/2023,PUBLIC TRANSPORT & PARKING,ADVICE,CORPORATE TRAVEL MANAGEMENTLIMITED,PINV2125,290.2
DBT,ACAS,30/09/2023,PUBLIC TRANSPORT & PARKING,DDAT,CORPORATE TRAVEL MANAGEMENTLIMITED,PINV2125,191.3
DBT,ACAS,30/09/2023,PUBLIC TRANSPORT & PARKING,ADVICE,CORPORATE TRAVEL MANAGEMENTLIMITED,PINV2125,48.9
DBT,ACAS,30/09/2023,PUBLIC TRANSPORT & PARKING,STRATEGY,CORPORATE TRAVEL MANAGEMENTLIMITED,PINV2125,221.2
DBT,ACAS,30/09/2023,PUBLIC TRANSPORT & PARKING,F&G,CORPORATE TRAVEL MANAGEMENTLIMITED,PINV2125,204
DBT,ACAS,30/09/2023,PUBLIC TRANSPORT & PARKING,DDAT,CORPORATE TRAVEL MANAGEMENTLIMITED,PINV2125,134
DBT,ACAS,30/09/2023,PUBLIC TRANSPORT & PARKING,F&G,CORPORATE TRAVEL MANAGEMENTLIMITED,PINV2125,-209.5
DBT,ACAS,30/09/2023,PUBLIC TRANSPORT & PARKING,STRATEGY,CORPORATE TRAVEL MANAGEMENTLIMITED,PINV2125,152.2
DBT,ACAS,30/09/2023,PUBLIC TRANSPORT & PARKING,F&G,CORPORATE TRAVEL MANAGEMENTLIMITED,PINV2125,171.8
DBT,ACAS,30/09/2023,PUBLIC TRANSPORT & PARKING,STRATEGY,CORPORATE TRAVEL MANAGEMENTLIMITED,PINV2125,26.6
DBT,ACAS,30/09/2023,PUBLIC TRANSPORT & PARKING,STRATEGY,CORPORATE TRAVEL MANAGEMENTLIMITED,PINV2125,19.8
DBT,ACAS,30/09/2023,PUBLIC TRANSPORT & PARKING,STRATEGY,CORPORATE TRAVEL MANAGEMENTLIMITED,PINV2125,107
DBT,ACAS,30/09/2023,PUBLIC TRANSPORT & PARKING,DISPUTE,CORPORATE TRAVEL MANAGEMENTLIMITED,PINV2125,188.8
DBT,ACAS,30/09/2023,PUBLIC TRANSPORT & PARKING,DISPUTE,CORPORATE TRAVEL MANAGEMENTLIMITED,PINV2125,13.4
DBT,ACAS,30/09/2023,HOTEL EXPENSES,DISPUTE,CORPORATE TRAVEL MANAGEMENTLIMITED,PINV2125,93.58
DBT,ACAS,30/09/2023,PUBLIC TRANSPORT & PARKING,CO,CORPORATE TRAVEL MANAGEMENTLIMITED,PINV2125,222.3
DBT,ACAS,30/09/2023,PUBLIC TRANSPORT & PARKING,CO,CORPORATE TRAVEL MANAGEMENTLIMITED,PINV2125,222.1
DBT,ACAS,30/09/2023,PUBLIC TRANSPORT & PARKING,F&G,CORPORATE TRAVEL MANAGEMENTLIMITED,PINV2125,49.5
DBT,ACAS,30/09/2023,PUBLIC TRANSPORT & PARKING,DDAT,CORPORATE TRAVEL MANAGEMENTLIMITED,PINV2125,127.5
DBT,ACAS,30/09/2023,PUBLIC TRANSPORT & PARKING,F&G,CORPORATE TRAVEL MANAGEMENTLIMITED,PINV2125,258.8
DBT,ACAS,30/09/2023,PUBLIC TRANSPORT & PARKING,DDAT,CORPORATE TRAVEL MANAGEMENTLIMITED,PINV2125,69
DBT,ACAS,30/09/2023,PUBLIC TRANSPORT & PARKING,DDAT,CORPORATE TRAVEL MANAGEMENTLIMITED,PINV2125,58.5
DBT,ACAS,30/09/2023,PUBLIC TRANSPORT & PARKING,DDAT,CORPORATE TRAVEL MANAGEMENTLIMITED,PINV2125,176.2
DBT,ACAS,30/09/2023,PUBLIC TRANSPORT & PARKING,DISPUTE,CORPORATE TRAVEL MANAGEMENTLIMITED,PINV2125,70.7
DBT,ACAS,30/09/2023,PUBLIC TRANSPORT & PARKING,DISPUTE,CORPORATE TRAVEL MANAGEMENTLIMITED,PINV2125,70.7
DBT,ACAS,30/09/2023,PUBLIC TRANSPORT & PARKING,ODHR,CORPORATE TRAVEL MANAGEMENTLIMITED,PINV2125,139.3
DBT,ACAS,30/09/2023,PUBLIC TRANSPORT & PARKING,DISPUTE,CORPORATE TRAVEL MANAGEMENTLIMITED,PINV2125,34.5
DBT,ACAS,30/09/2023,PUBLIC TRANSPORT & PARKING,ODHR,CORPORATE TRAVEL MANAGEMENTLIMITED,PINV2125,177.8
DBT,ACAS,30/09/2023,PUBLIC TRANSPORT & PARKING,CO,CORPORATE TRAVEL MANAGEMENTLIMITED,PINV2125,263
DBT,ACAS,30/09/2023,HOTEL EXPENSES,STRATEGY,CORPORATE TRAVEL MANAGEMENTLIMITED,PINV2125,141.42
DBT,ACAS,30/09/2023,HOTEL EXPENSES,STRATEGY,CORPORATE TRAVEL MANAGEMENTLIMITED,PINV2125,198
DBT,ACAS,30/09/2023,HOTEL EXPENSES,STRATEGY,CORPORATE TRAVEL MANAGEMENTLIMITED,PINV2125,80.1
DBT,ACAS,30/09/2023,PUBLIC TRANSPORT & PARKING,DDAT,CORPORATE TRAVEL MANAGEMENTLIMITED,PINV2125,275.2
DBT,ACAS,30/09/2023,HOTEL EXPENSES,STRATEGY,CORPORATE TRAVEL MANAGEMENTLIMITED,PINV2125,80.1
DBT,ACAS,30/09/2023,PUBLIC TRANSPORT & PARKING,ADVICE,CORPORATE TRAVEL MANAGEMENTLIMITED,PINV2125,264
DBT,ACAS,30/09/2023,PUBLIC TRANSPORT & PARKING,DISPUTE,CORPORATE TRAVEL MANAGEMENTLIMITED,PINV2125,121
DBT,ACAS,30/09/2023,PUBLIC TRANSPORT & PARKING,DDAT,CORPORATE TRAVEL MANAGEMENTLIMITED,PINV2125,258.8
DBT,ACAS,30/09/2023,PUBLIC TRANSPORT & PARKING,DISPUTE,CORPORATE TRAVEL MANAGEMENTLIMITED,PINV2125,17
DBT,ACAS,30/09/2023,PUBLIC TRANSPORT & PARKING,DISPUTE,CORPORATE TRAVEL MANAGEMENTLIMITED,PINV2125,23.8
DBT,ACAS,30/09/2023,PUBLIC TRANSPORT & PARKING,DISPUTE,CORPORATE TRAVEL MANAGEMENTLIMITED,PINV2125,171.3
DBT,ACAS,30/09/2023,PUBLIC TRANSPORT & PARKING,STRATEGY,CORPORATE TRAVEL MANAGEMENTLIMITED,PINV2125,79
DBT,ACAS,30/09/2023,PUBLIC TRANSPORT & PARKING,ADVICE,CORPORATE TRAVEL MANAGEMENTLIMITED,PINV2125,87.5
DBT,ACAS,30/09/2023,PUBLIC TRANSPORT & PARKING,DDAT,CORPORATE TRAVEL MANAGEMENTLIMITED,PINV2125,137.4
DBT,ACAS,30/09/2023,PUBLIC TRANSPORT & PARKING,DISPUTE,CORPORATE TRAVEL MANAGEMENTLIMITED,PINV2125,38.8
DBT,ACAS,30/09/2023,PUBLIC TRANSPORT & PARKING,DISPUTE,CORPORATE TRAVEL MANAGEMENTLIMITED,PINV2125,77.3
DBT,ACAS,30/09/2023,PUBLIC TRANSPORT & PARKING,ADVICE,CORPORATE TRAVEL MANAGEMENTLIMITED,PINV2125,59.2
DBT,ACAS,30/09/2023,PUBLIC TRANSPORT & PARKING,DDAT,CORPORATE TRAVEL MANAGEMENTLIMITED,PINV2125,238.4
DBT,ACAS,30/09/2023,PUBLIC TRANSPORT & PARKING,DDAT,CORPORATE TRAVEL MANAGEMENTLIMITED,PINV2125,247.9
DBT,ACAS,30/09/2023,PUBLIC TRANSPORT & PARKING,F&G,CORPORATE TRAVEL MANAGEMENTLIMITED,PINV2125,244.7
DBT,ACAS,30/09/2023,HOTEL EXPENSES,F&G,CORPORATE TRAVEL MANAGEMENTLIMITED,PINV2125,76.5
DBT,ACAS,30/09/2023,HOTEL EXPENSES,F&G,CORPORATE TRAVEL MANAGEMENTLIMITED,PINV2125,150
DBT,ACAS,30/09/2023,PUBLIC TRANSPORT & PARKING,ODHR,CORPORATE TRAVEL MANAGEMENTLIMITED,PINV2125,208
DBT,ACAS,30/09/2023,PUBLIC TRANSPORT & PARKING,DISPUTE,CORPORATE TRAVEL MANAGEMENTLIMITED,PINV2125,42.8
DBT,ACAS,30/09/2023,PUBLIC TRANSPORT & PARKING,DISPUTE,CORPORATE TRAVEL MANAGEMENTLIMITED,PINV2125,42.8
DBT,ACAS,30/09/2023,PUBLIC TRANSPORT & PARKING,DISPUTE,CORPORATE TRAVEL MANAGEMENTLIMITED,PINV2125,108.8
DBT,ACAS,30/09/2023,PUBLIC TRANSPORT & PARKING,DISPUTE,CORPORATE TRAVEL MANAGEMENTLIMITED,PINV2125,108.8
DBT,ACAS,30/09/2023,PUBLIC TRANSPORT & PARKING,DDAT,CORPORATE TRAVEL MANAGEMENTLIMITED,PINV2125,120.9
DBT,ACAS,30/09/2023,PUBLIC TRANSPORT & PARKING,ADVICE,CORPORATE TRAVEL MANAGEMENTLIMITED,PINV2125,118.8
DBT,ACAS,30/09/2023,PUBLIC TRANSPORT & PARKING,DDAT,CORPORATE TRAVEL MANAGEMENTLIMITED,PINV2125,113
DBT,ACAS,30/09/2023,PUBLIC TRANSPORT & PARKING,STRATEGY,CORPORATE TRAVEL MANAGEMENTLIMITED,PINV2125,218
DBT,ACAS,30/09/2023,PUBLIC TRANSPORT & PARKING,STRATEGY,CORPORATE TRAVEL MANAGEMENTLIMITED,PINV2125,181.5
DBT,ACAS,30/09/2023,PUBLIC TRANSPORT & PARKING,DISPUTE,CORPORATE TRAVEL MANAGEMENTLIMITED,PINV2125,19.8
DBT,ACAS,30/09/2023,PUBLIC TRANSPORT & PARKING,DDAT,CORPORATE TRAVEL MANAGEMENTLIMITED,PINV2125,194
DBT,ACAS,30/09/2023,HOTEL EXPENSES,DISPUTE,CORPORATE TRAVEL MANAGEMENTLIMITED,PINV2125,125.19
DBT,ACAS,30/09/2023,PUBLIC TRANSPORT & PARKING,STRATEGY,CORPORATE TRAVEL MANAGEMENTLIMITED,PINV2125,82.2
DBT,ACAS,30/09/2023,PUBLIC TRANSPORT & PARKING,ADVICE,CORPORATE TRAVEL MANAGEMENTLIMITED,PINV2125,39.1
DBT,ACAS,30/09/2023,PUBLIC TRANSPORT & PARKING,ADVICE,CORPORATE TRAVEL MANAGEMENTLIMITED,PINV2125,99.5
DBT,ACAS,30/09/2023,PUBLIC TRANSPORT & PARKING,STRATEGY,CORPORATE TRAVEL MANAGEMENTLIMITED,PINV2125,326.6
DBT,ACAS,30/09/2023,PUBLIC TRANSPORT & PARKING,STRATEGY,CORPORATE TRAVEL MANAGEMENTLIMITED,PINV2125,195.7
DBT,ACAS,30/09/2023,PUBLIC TRANSPORT & PARKING,DDAT,CORPORATE TRAVEL MANAGEMENTLIMITED,PINV2125,100
DBT,ACAS,30/09/2023,PUBLIC TRANSPORT & PARKING,DDAT,CORPORATE TRAVEL MANAGEMENTLIMITED,PINV2125,17.4
DBT,ACAS,30/09/2023,PUBLIC TRANSPORT & PARKING,ADVICE,CORPORATE TRAVEL MANAGEMENTLIMITED,PINV2125,29.9
DBT,ACAS,30/09/2023,PUBLIC TRANSPORT & PARKING,DDAT,CORPORATE TRAVEL MANAGEMENTLIMITED,PINV2125,17.5
DBT,ACAS,30/09/2023,PUBLIC TRANSPORT & PARKING,ADVICE,CORPORATE TRAVEL MANAGEMENTLIMITED,PINV2125,69.6
DBT,ACAS,30/09/2023,PUBLIC TRANSPORT & PARKING,STRATEGY,CORPORATE TRAVEL MANAGEMENTLIMITED,PINV2125,50.2
DBT,ACAS,30/09/2023,PUBLIC TRANSPORT & PARKING,DISPUTE,CORPORATE TRAVEL MANAGEMENTLIMITED,PINV2125,135.1
DBT,ACAS,30/09/2023,PUBLIC TRANSPORT & PARKING,STRATEGY,CORPORATE TRAVEL MANAGEMENTLIMITED,PINV2125,51.15
DBT,ACAS,30/09/2023,PUBLIC TRANSPORT & PARKING,ADVICE,CORPORATE TRAVEL MANAGEMENTLIMITED,PINV2125,64.1
DBT,ACAS,30/09/2023,PUBLIC TRANSPORT & PARKING,F&G,CORPORATE TRAVEL MANAGEMENTLIMITED,PINV2125,-85.2
DBT,ACAS,30/09/2023,PUBLIC TRANSPORT & PARKING,ADVICE,CORPORATE TRAVEL MANAGEMENTLIMITED,PINV2125,199
DBT,ACAS,30/09/2023,PUBLIC TRANSPORT & PARKING,DDAT,CORPORATE TRAVEL MANAGEMENTLIMITED,PINV2125,107
DBT,ACAS,30/09/2023,PUBLIC TRANSPORT & PARKING,DISPUTE,CORPORATE TRAVEL MANAGEMENTLIMITED,PINV2125,60.55
DBT,ACAS,30/09/2023,PUBLIC TRANSPORT & PARKING,ADVICE,CORPORATE TRAVEL MANAGEMENTLIMITED,PINV2125,105.9
DBT,ACAS,30/09/2023,PUBLIC TRANSPORT & PARKING,STRATEGY,CORPORATE TRAVEL MANAGEMENTLIMITED,PINV2125,246.7
DBT,ACAS,30/09/2023,PUBLIC TRANSPORT & PARKING,STRATEGY,CORPORATE TRAVEL MANAGEMENTLIMITED,PINV2125,250.2
DBT,ACAS,30/09/2023,PUBLIC TRANSPORT & PARKING,STRATEGY,CORPORATE TRAVEL MANAGEMENTLIMITED,PINV2125,230.85
DBT,ACAS,30/09/2023,HOTEL EXPENSES,ADVICE,CORPORATE TRAVEL MANAGEMENTLIMITED,PINV2125,245.83
DBT,ACAS,30/09/2023,HOTEL EXPENSES,DISPUTE,CORPORATE TRAVEL MANAGEMENTLIMITED,PINV2125,165
DBT,ACAS,30/09/2023,HOTEL EXPENSES,DDAT,CORPORATE TRAVEL MANAGEMENTLIMITED,PINV2125,390.7
DBT,ACAS,30/09/2023,PUBLIC TRANSPORT & PARKING,DDAT,CORPORATE TRAVEL MANAGEMENTLIMITED,PINV2125,272.5
DBT,ACAS,30/09/2023,CO&CAC Non Staff T&S,CAC,CORPORATE TRAVEL MANAGEMENTLIMITED,PINV2125,110.7
DBT,ACAS,30/09/2023,PUBLIC TRANSPORT & PARKING,ODHR,CORPORATE TRAVEL MANAGEMENTLIMITED,PINV2125,272.6
DBT,ACAS,30/09/2023,PUBLIC TRANSPORT & PARKING,DISPUTE,CORPORATE TRAVEL MANAGEMENTLIMITED,PINV2125,47
DBT,ACAS,30/09/2023,PUBLIC TRANSPORT & PARKING,ODHR,CORPORATE TRAVEL MANAGEMENTLIMITED,PINV2125,59.6
DBT,ACAS,30/09/2023,CO&CAC Non Staff T&S,CAC,CORPORATE TRAVEL MANAGEMENTLIMITED,PINV2125,110.7
DBT,ACAS,30/09/2023,PUBLIC TRANSPORT & PARKING,DDAT,CORPORATE TRAVEL MANAGEMENTLIMITED,PINV2125,28
DBT,ACAS,30/09/2023,PUBLIC TRANSPORT & PARKING,DDAT,CORPORATE TRAVEL MANAGEMENTLIMITED,PINV2125,135.3
DBT,ACAS,30/09/2023,PUBLIC TRANSPORT & PARKING,DISPUTE,CORPORATE TRAVEL MANAGEMENTLIMITED,PINV2125,179
DBT,ACAS,30/09/2023,PUBLIC TRANSPORT & PARKING,DISPUTE,CORPORATE TRAVEL MANAGEMENTLIMITED,PINV2125,72.2
DBT,ACAS,30/09/2023,HOTEL EXPENSES,ADVICE,CORPORATE TRAVEL MANAGEMENTLIMITED,PINV2125,82.5
DBT,ACAS,30/09/2023,CO&CAC Non Staff T&S,CAC,CORPORATE TRAVEL MANAGEMENTLIMITED,PINV2125,140.25
DBT,ACAS,30/09/2023,HOTEL EXPENSES,DDAT,CORPORATE TRAVEL MANAGEMENTLIMITED,PINV2125,390.5
DBT,ACAS,30/09/2023,HOTEL EXPENSES,ADVICE,CORPORATE TRAVEL MANAGEMENTLIMITED,PINV2125,406.25
DBT,ACAS,30/09/2023,HOTEL EXPENSES,ADVICE,CORPORATE TRAVEL MANAGEMENTLIMITED,PINV2125,98
DBT,ACAS,30/09/2023,HOTEL EXPENSES,ADVICE,CORPORATE TRAVEL MANAGEMENTLIMITED,PINV2125,83.32
DBT,ACAS,30/09/2023,HOTEL EXPENSES,ADVICE,CORPORATE TRAVEL MANAGEMENTLIMITED,PINV2125,86
DBT,ACAS,30/09/2023,PUBLIC TRANSPORT & PARKING,ADVICE,CORPORATE TRAVEL MANAGEMENTLIMITED,PINV2125,-45.4
DBT,ACAS,30/09/2023,PUBLIC TRANSPORT & PARKING,F&G,CORPORATE TRAVEL MANAGEMENTLIMITED,PINV2125,123.15
DBT,ACAS,30/09/2023,PUBLIC TRANSPORT & PARKING,ADVICE,CORPORATE TRAVEL MANAGEMENTLIMITED,PINV2125,170.4
DBT,ACAS,30/09/2023,PUBLIC TRANSPORT & PARKING,ADVICE,CORPORATE TRAVEL MANAGEMENTLIMITED,PINV2125,170.4
DBT,ACAS,30/09/2023,PUBLIC TRANSPORT & PARKING,DISPUTE,CORPORATE TRAVEL MANAGEMENTLIMITED,PINV2125,155.6
DBT,ACAS,30/09/2023,PUBLIC TRANSPORT & PARKING,ADVICE,CORPORATE TRAVEL MANAGEMENTLIMITED,PINV2125,76.4
DBT,ACAS,30/09/2023,PUBLIC TRANSPORT & PARKING,DISPUTE,CORPORATE TRAVEL MANAGEMENTLIMITED,PINV2125,99.45
DBT,ACAS,30/09/2023,PUBLIC TRANSPORT & PARKING,ADVICE,CORPORATE TRAVEL MANAGEMENTLIMITED,PINV2125,-34
DBT,ACAS,30/09/2023,PUBLIC TRANSPORT & PARKING,ADVICE,CORPORATE TRAVEL MANAGEMENTLIMITED,PINV2125,-66.1
DBT,ACAS,30/09/2023,PUBLIC TRANSPORT & PARKING,ODHR,CORPORATE TRAVEL MANAGEMENTLIMITED,PINV2125,113.2
DBT,ACAS,30/09/2023,PUBLIC TRANSPORT & PARKING,ODHR,CORPORATE TRAVEL MANAGEMENTLIMITED,PINV2125,119
DBT,ACAS,30/09/2023,PUBLIC TRANSPORT & PARKING,ODHR,CORPORATE TRAVEL MANAGEMENTLIMITED,PINV2125,193.8
DBT,ACAS,30/09/2023,PUBLIC TRANSPORT & PARKING,ODHR,CORPORATE TRAVEL MANAGEMENTLIMITED,PINV2125,74
DBT,ACAS,30/09/2023,PUBLIC TRANSPORT & PARKING,ODHR,CORPORATE TRAVEL MANAGEMENTLIMITED,PINV2125,58
DBT,ACAS,30/09/2023,PUBLIC TRANSPORT & PARKING,CAC,CORPORATE TRAVEL MANAGEMENTLIMITED,PINV2125,54.6
DBT,ACAS,30/09/2023,PUBLIC TRANSPORT & PARKING,ADVICE,CORPORATE TRAVEL MANAGEMENTLIMITED,PINV2125,27.2
DBT,ACAS,30/09/2023,PUBLIC TRANSPORT & PARKING,DISPUTE,CORPORATE TRAVEL MANAGEMENTLIMITED,PINV2125,60.5
DBT,ACAS,30/09/2023,PUBLIC TRANSPORT & PARKING,ODHR,CORPORATE TRAVEL MANAGEMENTLIMITED,PINV2125,214.6
DBT,ACAS,30/09/2023,PUBLIC TRANSPORT & PARKING,DISPUTE,CORPORATE TRAVEL MANAGEMENTLIMITED,PINV2125,60.5
DBT,ACAS,30/09/2023,HOTEL EXPENSES,DDAT,CORPORATE TRAVEL MANAGEMENTLIMITED,PINV2125,215.6
DBT,ACAS,30/09/2023,HOTEL EXPENSES,DISPUTE,CORPORATE TRAVEL MANAGEMENTLIMITED,PINV2125,205.5
DBT,ACAS,30/09/2023,HOTEL EXPENSES,DDAT,CORPORATE TRAVEL MANAGEMENTLIMITED,PINV2125,222.59
DBT,ACAS,30/09/2023,HOTEL EXPENSES,DDAT,CORPORATE TRAVEL MANAGEMENTLIMITED,PINV2125,241.2
DBT,ACAS,30/09/2023,PUBLIC TRANSPORT & PARKING,ADVICE,CORPORATE TRAVEL MANAGEMENTLIMITED,PINV2125,-45.4
DBT,ACAS,30/09/2023,HOTEL EXPENSES,ADVICE,CORPORATE TRAVEL MANAGEMENTLIMITED,PINV2125,146.67
DBT,ACAS,30/09/2023,HOTEL EXPENSES,STRATEGY,CORPORATE TRAVEL MANAGEMENTLIMITED,PINV2125,159
DBT,ACAS,30/09/2023,HOTEL EXPENSES,DDAT,CORPORATE TRAVEL MANAGEMENTLIMITED,PINV2125,437
DBT,ACAS,30/09/2023,HOTEL EXPENSES,DDAT,CORPORATE TRAVEL MANAGEMENTLIMITED,PINV2125,241
DBT,ACAS,30/09/2023,HOTEL EXPENSES,DDAT,CORPORATE TRAVEL MANAGEMENTLIMITED,PINV2125,263.66
DBT,ACAS,30/09/2023,HOTEL EXPENSES,STRATEGY,CORPORATE TRAVEL MANAGEMENTLIMITED,PINV2125,153
DBT,ACAS,30/09/2023,PUBLIC TRANSPORT & PARKING,STRATEGY,CORPORATE TRAVEL MANAGEMENTLIMITED,PINV2125,282.6
DBT,ACAS,30/09/2023,PUBLIC TRANSPORT & PARKING,ODHR,CORPORATE TRAVEL MANAGEMENTLIMITED,PINV2125,96.5
DBT,ACAS,30/09/2023,PUBLIC TRANSPORT & PARKING,ODHR,CORPORATE TRAVEL MANAGEMENTLIMITED,PINV2125,158.7
DBT,ACAS,30/09/2023,PUBLIC TRANSPORT & PARKING,ODHR,CORPORATE TRAVEL MANAGEMENTLIMITED,PINV2125,126.3
DBT,ACAS,30/09/2023,PUBLIC TRANSPORT & PARKING,ODHR,CORPORATE TRAVEL MANAGEMENTLIMITED,PINV2125,125.7
DBT,ACAS,30/09/2023,PUBLIC TRANSPORT & PARKING,ODHR,CORPORATE TRAVEL MANAGEMENTLIMITED,PINV2125,239
DBT,ACAS,30/09/2023,PUBLIC TRANSPORT & PARKING,DISPUTE,CORPORATE TRAVEL MANAGEMENTLIMITED,PINV2125,44.85
DBT,ACAS,30/09/2023,PUBLIC TRANSPORT & PARKING,DISPUTE,CORPORATE TRAVEL MANAGEMENTLIMITED,PINV2125,40.05
DBT,ACAS,30/09/2023,PUBLIC TRANSPORT & PARKING,ODHR,CORPORATE TRAVEL MANAGEMENTLIMITED,PINV2125,215.3
DBT,ACAS,30/09/2023,PUBLIC TRANSPORT & PARKING,ADVICE,CORPORATE TRAVEL MANAGEMENTLIMITED,PINV2125,193.3
DBT,ACAS,30/09/2023,PUBLIC TRANSPORT & PARKING,STRATEGY,CORPORATE TRAVEL MANAGEMENTLIMITED,PINV2125,162
DBT,ACAS,30/09/2023,PUBLIC TRANSPORT & PARKING,ODHR,CORPORATE TRAVEL MANAGEMENTLIMITED,PINV2125,46
DBT,ACAS,30/09/2023,PUBLIC TRANSPORT & PARKING,ADVICE,CORPORATE TRAVEL MANAGEMENTLIMITED,PINV2125,320.6
DBT,ACAS,30/09/2023,PUBLIC TRANSPORT & PARKING,DISPUTE,CORPORATE TRAVEL MANAGEMENTLIMITED,PINV2125,120.2
DBT,ACAS,30/09/2023,PUBLIC TRANSPORT & PARKING,ADVICE,CORPORATE TRAVEL MANAGEMENTLIMITED,PINV2125,216.6
DBT,ACAS,30/09/2023,PUBLIC TRANSPORT & PARKING,STRATEGY,CORPORATE TRAVEL MANAGEMENTLIMITED,PINV2125,119.7
DBT,ACAS,30/09/2023,PUBLIC TRANSPORT & PARKING,DISPUTE,CORPORATE TRAVEL MANAGEMENTLIMITED,PINV2125,97.6
DBT,ACAS,30/09/2023,PUBLIC TRANSPORT & PARKING,DISPUTE,CORPORATE TRAVEL MANAGEMENTLIMITED,PINV2125,71.3
DBT,ACAS,30/09/2023,PUBLIC TRANSPORT & PARKING,DDAT,CORPORATE TRAVEL MANAGEMENTLIMITED,PINV2125,136.2
DBT,ACAS,30/09/2023,PUBLIC TRANSPORT & PARKING,DDAT,CORPORATE TRAVEL MANAGEMENTLIMITED,PINV2125,136.2
DBT,ACAS,30/09/2023,HOTEL EXPENSES,DISPUTE,CORPORATE TRAVEL MANAGEMENTLIMITED,PINV2125,107.49
DBT,ACAS,30/09/2023,HOTEL EXPENSES,STRATEGY,CORPORATE TRAVEL MANAGEMENTLIMITED,PINV2125,89
DBT,ACAS,30/09/2023,HOTEL EXPENSES,STRATEGY,CORPORATE TRAVEL MANAGEMENTLIMITED,PINV2125,90.2
DBT,ACAS,30/09/2023,PUBLIC TRANSPORT & PARKING,DISPUTE,CORPORATE TRAVEL MANAGEMENTLIMITED,PINV2125,69.4
DBT,ACAS,30/09/2023,PUBLIC TRANSPORT & PARKING,ODHR,CORPORATE TRAVEL MANAGEMENTLIMITED,PINV2125,105.5
DBT,ACAS,30/09/2023,PUBLIC TRANSPORT & PARKING,ADVICE,CORPORATE TRAVEL MANAGEMENTLIMITED,PINV2125,99.5
DBT,ACAS,30/09/2023,PUBLIC TRANSPORT & PARKING,ADVICE,CORPORATE TRAVEL MANAGEMENTLIMITED,PINV2125,58.8
DBT,ACAS,30/09/2023,PUBLIC TRANSPORT & PARKING,ADVICE,CORPORATE TRAVEL MANAGEMENTLIMITED,PINV2125,67.8
DBT,ACAS,30/09/2023,PUBLIC TRANSPORT & PARKING,ODHR,CORPORATE TRAVEL MANAGEMENTLIMITED,PINV2125,102.3
DBT,ACAS,30/09/2023,PUBLIC TRANSPORT & PARKING,ODHR,CORPORATE TRAVEL MANAGEMENTLIMITED,PINV2125,52.5
DBT,ACAS,30/09/2023,PUBLIC TRANSPORT & PARKING,ODHR,CORPORATE TRAVEL MANAGEMENTLIMITED,PINV2125,55.2
DBT,ACAS,30/09/2023,PUBLIC TRANSPORT & PARKING,ADVICE,CORPORATE TRAVEL MANAGEMENTLIMITED,PINV2125,63.2
DBT,ACAS,30/09/2023,PUBLIC TRANSPORT & PARKING,DISPUTE,CORPORATE TRAVEL MANAGEMENTLIMITED,PINV2125,152
DBT,ACAS,30/09/2023,PUBLIC TRANSPORT & PARKING,ADVICE,CORPORATE TRAVEL MANAGEMENTLIMITED,PINV2125,28.2
DBT,ACAS,30/09/2023,PUBLIC TRANSPORT & PARKING,ADVICE,CORPORATE TRAVEL MANAGEMENTLIMITED,PINV2125,13.5
DBT,ACAS,30/09/2023,PUBLIC TRANSPORT & PARKING,ADVICE,CORPORATE TRAVEL MANAGEMENTLIMITED,PINV2125,52
DBT,ACAS,30/09/2023,PUBLIC TRANSPORT & PARKING,DISPUTE,CORPORATE TRAVEL MANAGEMENTLIMITED,PINV2125,95.5
DBT,ACAS,30/09/2023,PUBLIC TRANSPORT & PARKING,ADVICE,CORPORATE TRAVEL MANAGEMENTLIMITED,PINV2125,94
DBT,ACAS,30/09/2023,PUBLIC TRANSPORT & PARKING,ADVICE,CORPORATE TRAVEL MANAGEMENTLIMITED,PINV2125,288.5
DBT,ACAS,30/09/2023,PUBLIC TRANSPORT & PARKING,STRATEGY,CORPORATE TRAVEL MANAGEMENTLIMITED,PINV2125,286.4
DBT,ACAS,30/09/2023,PUBLIC TRANSPORT & PARKING,STRATEGY,CORPORATE TRAVEL MANAGEMENTLIMITED,PINV2125,194
DBT,ACAS,30/09/2023,PUBLIC TRANSPORT & PARKING,ADVICE,CORPORATE TRAVEL MANAGEMENTLIMITED,PINV2125,80.6
DBT,ACAS,30/09/2023,PUBLIC TRANSPORT & PARKING,ODHR,CORPORATE TRAVEL MANAGEMENTLIMITED,PINV2125,44.2
DBT,ACAS,30/09/2023,PUBLIC TRANSPORT & PARKING,ODHR,CORPORATE TRAVEL MANAGEMENTLIMITED,PINV2125,280.4
DBT,ACAS,30/09/2023,PUBLIC TRANSPORT & PARKING,DDAT,CORPORATE TRAVEL MANAGEMENTLIMITED,PINV2125,140.2
DBT,ACAS,30/09/2023,PUBLIC TRANSPORT & PARKING,DDAT,CORPORATE TRAVEL MANAGEMENTLIMITED,PINV2125,140.2
DBT,ACAS,30/09/2023,PUBLIC TRANSPORT & PARKING,ODHR,CORPORATE TRAVEL MANAGEMENTLIMITED,PINV2125,257.2
DBT,ACAS,30/09/2023,HOTEL EXPENSES,DISPUTE,CORPORATE TRAVEL MANAGEMENTLIMITED,PINV2125,87
DBT,ACAS,30/09/2023,PUBLIC TRANSPORT & PARKING,STRATEGY,CORPORATE TRAVEL MANAGEMENTLIMITED,PINV2125,139.7
DBT,ACAS,30/09/2023,PUBLIC TRANSPORT & PARKING,ODHR,CORPORATE TRAVEL MANAGEMENTLIMITED,PINV2125,138.1
DBT,ACAS,30/09/2023,PUBLIC TRANSPORT & PARKING,ADVICE,CORPORATE TRAVEL MANAGEMENTLIMITED,PINV2125,81.4
DBT,ACAS,30/09/2023,PUBLIC TRANSPORT & PARKING,ADVICE,CORPORATE TRAVEL MANAGEMENTLIMITED,PINV2125,116.4
DBT,ACAS,30/09/2023,PUBLIC TRANSPORT & PARKING,ODHR,CORPORATE TRAVEL MANAGEMENTLIMITED,PINV2125,72.2
DBT,ACAS,30/09/2023,PUBLIC TRANSPORT & PARKING,ADVICE,CORPORATE TRAVEL MANAGEMENTLIMITED,PINV2125,185
DBT,ACAS,30/09/2023,HOTEL EXPENSES,DISPUTE,CORPORATE TRAVEL MANAGEMENTLIMITED,PINV2125,88
DBT,ACAS,30/09/2023,HOTEL EXPENSES,ODHR,CORPORATE TRAVEL MANAGEMENTLIMITED,PINV2125,88
DBT,ACAS,30/09/2023,HOTEL EXPENSES,DISPUTE,CORPORATE TRAVEL MANAGEMENTLIMITED,PINV2125,88
DBT,ACAS,30/09/2023,PUBLIC TRANSPORT & PARKING,ADVICE,CORPORATE TRAVEL MANAGEMENTLIMITED,PINV2125,113.9
DBT,ACAS,30/09/2023,PUBLIC TRANSPORT & PARKING,ADVICE,CORPORATE TRAVEL MANAGEMENTLIMITED,PINV2125,30.7
DBT,ACAS,30/09/2023,PUBLIC TRANSPORT & PARKING,ODHR,CORPORATE TRAVEL MANAGEMENTLIMITED,PINV2125,61.3
DBT,ACAS,30/09/2023,PUBLIC TRANSPORT & PARKING,DDAT,CORPORATE TRAVEL MANAGEMENTLIMITED,PINV2125,179.4
DBT,ACAS,30/09/2023,PUBLIC TRANSPORT & PARKING,ADVICE,CORPORATE TRAVEL MANAGEMENTLIMITED,PINV2125,150.1
DBT,ACAS,30/09/2023,HOTEL EXPENSES,F&G,CORPORATE TRAVEL MANAGEMENTLIMITED,PINV2125,330
DBT,ACAS,30/09/2023,HOTEL EXPENSES,DISPUTE,CORPORATE TRAVEL MANAGEMENTLIMITED,PINV2125,87.3
DBT,ACAS,30/09/2023,HOTEL EXPENSES,ADVICE,CORPORATE TRAVEL MANAGEMENTLIMITED,PINV2125,81.67
DBT,ACAS,30/09/2023,PUBLIC TRANSPORT & PARKING,STRATEGY,CORPORATE TRAVEL MANAGEMENTLIMITED,PINV2125,55
DBT,ACAS,30/09/2023,PUBLIC TRANSPORT & PARKING,ODHR,CORPORATE TRAVEL MANAGEMENTLIMITED,PINV2125,66.4
DBT,ACAS,30/09/2023,HOTEL EXPENSES,DISPUTE,CORPORATE TRAVEL MANAGEMENTLIMITED,PINV2125,88
DBT,ACAS,30/09/2023,PUBLIC TRANSPORT & PARKING,STRATEGY,CORPORATE TRAVEL MANAGEMENTLIMITED,PINV2125,94.4
DBT,ACAS,30/09/2023,HOTEL EXPENSES,ADVICE,CORPORATE TRAVEL MANAGEMENTLIMITED,PINV2125,123.55
DBT,ACAS,30/09/2023,HOTEL EXPENSES,ADVICE,CORPORATE TRAVEL MANAGEMENTLIMITED,PINV2125,247.1
DBT,ACAS,30/09/2023,HOTEL EXPENSES,ADVICE,CORPORATE TRAVEL MANAGEMENTLIMITED,PINV2125,123.55
DBT,ACAS,30/09/2023,PUBLIC TRANSPORT & PARKING,STRATEGY,CORPORATE TRAVEL MANAGEMENTLIMITED,PINV2125,203
DBT,ACAS,30/09/2023,PUBLIC TRANSPORT & PARKING,STRATEGY,CORPORATE TRAVEL MANAGEMENTLIMITED,PINV2125,114.63
DBT,ACAS,30/09/2023,PUBLIC TRANSPORT & PARKING,STRATEGY,CORPORATE TRAVEL MANAGEMENTLIMITED,PINV2125,165.3
DBT,ACAS,30/09/2023,PUBLIC TRANSPORT & PARKING,ADVICE,CORPORATE TRAVEL MANAGEMENTLIMITED,PINV2125,32.1
DBT,ACAS,30/09/2023,PUBLIC TRANSPORT & PARKING,ODHR,CORPORATE TRAVEL MANAGEMENTLIMITED,PINV2125,188.8
DBT,ACAS,30/09/2023,PUBLIC TRANSPORT & PARKING,DISPUTE,CORPORATE TRAVEL MANAGEMENTLIMITED,PINV2125,198.9
DBT,ACAS,30/09/2023,PUBLIC TRANSPORT & PARKING,ODHR,CORPORATE TRAVEL MANAGEMENTLIMITED,PINV2125,246.9
DBT,ACAS,30/09/2023,PUBLIC TRANSPORT & PARKING,ODHR,CORPORATE TRAVEL MANAGEMENTLIMITED,PINV2125,194.8
DBT,ACAS,30/09/2023,PUBLIC TRANSPORT & PARKING,ODHR,CORPORATE TRAVEL MANAGEMENTLIMITED,PINV2125,269.7
DBT,ACAS,30/09/2023,PUBLIC TRANSPORT & PARKING,ODHR,CORPORATE TRAVEL MANAGEMENTLIMITED,PINV2125,221.5
DBT,ACAS,30/09/2023,PUBLIC TRANSPORT & PARKING,ODHR,CORPORATE TRAVEL MANAGEMENTLIMITED,PINV2125,101
DBT,ACAS,30/09/2023,PUBLIC TRANSPORT & PARKING,ODHR,CORPORATE TRAVEL MANAGEMENTLIMITED,PINV2125,50.6
DBT,ACAS,30/09/2023,PUBLIC TRANSPORT & PARKING,ODHR,CORPORATE TRAVEL MANAGEMENTLIMITED,PINV2125,85
DBT,ACAS,30/09/2023,HOTEL EXPENSES,STRATEGY,CORPORATE TRAVEL MANAGEMENTLIMITED,PINV2125,225
DBT,ACAS,30/09/2023,HOTEL EXPENSES,STRATEGY,CORPORATE TRAVEL MANAGEMENTLIMITED,PINV2125,212.2
DBT,ACAS,30/09/2023,HOTEL EXPENSES,STRATEGY,CORPORATE TRAVEL MANAGEMENTLIMITED,PINV2125,232
DBT,ACAS,30/09/2023,HOTEL EXPENSES,STRATEGY,CORPORATE TRAVEL MANAGEMENTLIMITED,PINV2125,225
DBT,ACAS,30/09/2023,HOTEL EXPENSES,DISPUTE,CORPORATE TRAVEL MANAGEMENTLIMITED,PINV2125,76
DBT,ACAS,30/09/2023,HOTEL EXPENSES,STRATEGY,CORPORATE TRAVEL MANAGEMENTLIMITED,PINV2125,232
DBT,ACAS,30/09/2023,HOTEL EXPENSES,STRATEGY,CORPORATE TRAVEL MANAGEMENTLIMITED,PINV2125,212.2
DBT,ACAS,30/09/2023,HOTEL EXPENSES,DISPUTE,CORPORATE TRAVEL MANAGEMENTLIMITED,PINV2125,147.99
DBT,ACAS,30/09/2023,PUBLIC TRANSPORT & PARKING,CAC,CORPORATE TRAVEL MANAGEMENTLIMITED,PINV2125,106.2
DBT,ACAS,30/09/2023,PUBLIC TRANSPORT & PARKING,DISPUTE,CORPORATE TRAVEL MANAGEMENTLIMITED,PINV2125,342.6
DBT,ACAS,30/09/2023,PUBLIC TRANSPORT & PARKING,ODHR,CORPORATE TRAVEL MANAGEMENTLIMITED,PINV2125,9.2
DBT,ACAS,30/09/2023,PUBLIC TRANSPORT & PARKING,ODHR,CORPORATE TRAVEL MANAGEMENTLIMITED,PINV2125,9.2
DBT,ACAS,30/09/2023,PUBLIC TRANSPORT & PARKING,ODHR,CORPORATE TRAVEL MANAGEMENTLIMITED,PINV2125,23.2
DBT,ACAS,30/09/2023,PUBLIC TRANSPORT & PARKING,ODHR,CORPORATE TRAVEL MANAGEMENTLIMITED,PINV2125,23.2
DBT,ACAS,30/09/2023,PUBLIC TRANSPORT & PARKING,DDAT,CORPORATE TRAVEL MANAGEMENTLIMITED,PINV2125,94
DBT,ACAS,30/09/2023,PUBLIC TRANSPORT & PARKING,DISPUTE,CORPORATE TRAVEL MANAGEMENTLIMITED,PINV2125,135.7
DBT,ACAS,30/09/2023,PUBLIC TRANSPORT & PARKING,DISPUTE,CORPORATE TRAVEL MANAGEMENTLIMITED,PINV2125,223.5
DBT,ACAS,30/09/2023,HOTEL EXPENSES,F&G,CORPORATE TRAVEL MANAGEMENTLIMITED,PINV2125,75.2
DBT,ACAS,30/09/2023,PUBLIC TRANSPORT & PARKING,ODHR,CORPORATE TRAVEL MANAGEMENTLIMITED,PINV2125,220.2
DBT,ACAS,30/09/2023,HOTEL EXPENSES,DISPUTE,CORPORATE TRAVEL MANAGEMENTLIMITED,PINV2125,85
DBT,ACAS,30/09/2023,HOTEL EXPENSES,ADVICE,CORPORATE TRAVEL MANAGEMENTLIMITED,PINV2125,71.66
DBT,ACAS,30/09/2023,PUBLIC TRANSPORT & PARKING,DISPUTE,CORPORATE TRAVEL MANAGEMENTLIMITED,PINV2125,35.5
DBT,ACAS,30/09/2023,PUBLIC TRANSPORT & PARKING,DISPUTE,CORPORATE TRAVEL MANAGEMENTLIMITED,PINV2125,47.3
DBT,ACAS,30/09/2023,PUBLIC TRANSPORT & PARKING,STRATEGY,CORPORATE TRAVEL MANAGEMENTLIMITED,PINV2125,38.2
DBT,ACAS,30/09/2023,PUBLIC TRANSPORT & PARKING,ADVICE,CORPORATE TRAVEL MANAGEMENTLIMITED,PINV2125,103
DBT,ACAS,30/09/2023,PUBLIC TRANSPORT & PARKING,DISPUTE,CORPORATE TRAVEL MANAGEMENTLIMITED,PINV2125,143.4
DBT,ACAS,30/09/2023,PUBLIC TRANSPORT & PARKING,DISPUTE,CORPORATE TRAVEL MANAGEMENTLIMITED,PINV2125,50.2
DBT,ACAS,30/09/2023,PUBLIC TRANSPORT & PARKING,ADVICE,CORPORATE TRAVEL MANAGEMENTLIMITED,PINV2125,43
DBT,ACAS,30/09/2023,HOTEL EXPENSES,ODHR,CORPORATE TRAVEL MANAGEMENTLIMITED,PINV2125,165
DBT,ACAS,30/09/2023,PUBLIC TRANSPORT & PARKING,DISPUTE,CORPORATE TRAVEL MANAGEMENTLIMITED,PINV2125,84.6
DBT,ACAS,30/09/2023,PUBLIC TRANSPORT & PARKING,DISPUTE,CORPORATE TRAVEL MANAGEMENTLIMITED,PINV2125,170.6
DBT,ACAS,30/09/2023,PUBLIC TRANSPORT & PARKING,DISPUTE,CORPORATE TRAVEL MANAGEMENTLIMITED,PINV2125,153.4
DBT,ACAS,30/09/2023,PUBLIC TRANSPORT & PARKING,DISPUTE,CORPORATE TRAVEL MANAGEMENTLIMITED,PINV2125,153.4
DBT,ACAS,30/09/2023,PUBLIC TRANSPORT & PARKING,DDAT,CORPORATE TRAVEL MANAGEMENTLIMITED,PINV2125,78
DBT,ACAS,30/09/2023,HOTEL EXPENSES,STRATEGY,CORPORATE TRAVEL MANAGEMENTLIMITED,PINV2125,149.25
DBT,ACAS,30/09/2023,PUBLIC TRANSPORT & PARKING,DISPUTE,CORPORATE TRAVEL MANAGEMENTLIMITED,PINV2125,184.4
DBT,ACAS,30/09/2023,PUBLIC TRANSPORT & PARKING,DISPUTE,CORPORATE TRAVEL MANAGEMENTLIMITED,PINV2125,96.5
DBT,ACAS,30/09/2023,PUBLIC TRANSPORT & PARKING,DISPUTE,CORPORATE TRAVEL MANAGEMENTLIMITED,PINV2125,64.3
DBT,ACAS,30/09/2023,PUBLIC TRANSPORT & PARKING,STRATEGY,CORPORATE TRAVEL MANAGEMENTLIMITED,PINV2125,96.55
DBT,ACAS,30/09/2023,PUBLIC TRANSPORT & PARKING,ADVICE,CORPORATE TRAVEL MANAGEMENTLIMITED,PINV2125,105.5
DBT,ACAS,30/09/2023,PUBLIC TRANSPORT & PARKING,ADVICE,CORPORATE TRAVEL MANAGEMENTLIMITED,PINV2125,-64.4
DBT,ACAS,25/10/2023,PROFESSIONAL FEES,ADVICE,CYMEN CYF,POIN1854,448.8
DBT,ACAS,20/10/2023,PROFESSIONAL FEES,DDAT,DATAQUEST GROUP LIMITED,POIN1853,"10,108.60"
DBT,ACAS,25/10/2023,PROFESSIONAL FEES,DDAT,DIGITAL ACCESSIBILITY CENTRE LTD,POIN1849,"6,480.00"
DBT,ACAS,30/09/2023,RECOGNITION PAYMENTS,CENTRE,EDENRED (UK GROUP ) LTD,PINV2101,"12,575.00"
DBT,ACAS,18/10/2023,CHILDCARE VOUCHERS,F&G,EDENRED CHILDCARE VOUCHERS LTD,PINV2134,"1,452.00"
DBT,ACAS,24/10/2023,HIRE CAR COSTS,DISPUTE,ENTERPRISE RENT-A-CAR,PINV2170,133.06
DBT,ACAS,24/10/2023,HIRE CAR COSTS,ADVICE,ENTERPRISE RENT-A-CAR,PINV2170,120.84
DBT,ACAS,24/10/2023,HIRE CAR COSTS,DISPUTE,ENTERPRISE RENT-A-CAR,PINV2170,102.42
DBT,ACAS,24/10/2023,HIRE CAR COSTS,DISPUTE,ENTERPRISE RENT-A-CAR,PINV2170,246.1
DBT,ACAS,24/10/2023,HIRE CAR COSTS,ADVICE,ENTERPRISE RENT-A-CAR,PINV2170,216.1
DBT,ACAS,24/10/2023,HIRE CAR COSTS,DISPUTE,ENTERPRISE RENT-A-CAR,PINV2170,102.42
DBT,ACAS,24/10/2023,HIRE CAR COSTS,DISPUTE,ENTERPRISE RENT-A-CAR,PINV2170,109.24
DBT,ACAS,24/10/2023,HIRE CAR COSTS,DISPUTE,ENTERPRISE RENT-A-CAR,PINV2170,216.1
DBT,ACAS,24/10/2023,HIRE CAR COSTS,DISPUTE,ENTERPRISE RENT-A-CAR,PINV2170,102.42
DBT,ACAS,24/10/2023,HIRE CAR COSTS,DDAT,ENTERPRISE RENT-A-CAR,PINV2170,84.53
DBT,ACAS,24/10/2023,HIRE CAR COSTS,DDAT,ENTERPRISE RENT-A-CAR,PINV2170,102.42
DBT,ACAS,24/10/2023,HIRE CAR COSTS,DISPUTE,ENTERPRISE RENT-A-CAR,PINV2170,246.1
DBT,ACAS,24/10/2023,HIRE CAR COSTS,DISPUTE,ENTERPRISE RENT-A-CAR,PINV2170,123.12
DBT,ACAS,24/10/2023,HIRE CAR PETROL,DISPUTE,ENTERPRISE RENT-A-CAR,PINV2170,33.82
DBT,ACAS,29/09/2023,EXTERNAL LEARNING - CSL,ODHR,ERNST & YOUNG LLP,POIN1797,"36,336.00"
DBT,ACAS,20/10/2023,EXTERNAL LEARNING - CSL,ODHR,ERNST & YOUNG LLP,POIN1839,441.2
DBT,ACAS,20/10/2023,EXTERNAL LEARNING - CSL,ODHR,ERNST & YOUNG LLP,POIN1841,638.4
DBT,ACAS,04/10/2023,EXTERNAL LEARNING - CSL,ODHR,ERNST & YOUNG LLP,PINV2135,"40,582.80"
DBT,ACAS,31/08/2023,LEGAL FEES,STRATEGY,FIELD FISHER,PINV2118,936
DBT,ACAS,31/08/2023,LEGAL FEES,STRATEGY,FIELD FISHER,PINV2118,270
DBT,ACAS,22/08/2023,OCCUPATIONAL HEALTH SERVICE,F&G,FLEXIFORM BUSINESS FURNITURE LTD,POIN1794,645.52
DBT,ACAS,27/09/2023,OCCUPATIONAL HEALTH SERVICE,F&G,FLEXIFORM BUSINESS FURNITURE LTD,POIN1803,"1,036.64"
DBT,ACAS,20/09/2023,OCCUPATIONAL HEALTH SERVICE,F&G,FLEXIFORM BUSINESS FURNITURE LTD,POIN1807,501.84
DBT,ACAS,18/10/2023,OCCUPATIONAL HEALTH SERVICE,F&G,FLEXIFORM BUSINESS FURNITURE LTD,POIN1844,486.48
DBT,ACAS,18/10/2023,OCCUPATIONAL HEALTH SERVICE,F&G,FLEXIFORM BUSINESS FURNITURE LTD,POIN1845,560.4
DBT,ACAS,24/10/2023,OCCUPATIONAL HEALTH SERVICE,F&G,FLEXIFORM BUSINESS FURNITURE LTD,POIN1858,"1,101.66"
DBT,ACAS,09/10/2023,PROFESSIONAL FEES,DDAT,GAMMA TELECOM LIMITED,PINV2115,"4,609.93"
DBT,ACAS,28/09/2023,EXTERNAL LEARNING,ODHR,GJR PERFORMANCE SOLUTIONS LTD,POIN1798,"1,000.00"
DBT,ACAS,17/04/2023,GOVT SOLICITORS FEES,ODHR,GOVERNMENT LEGAL DEPARTMENT,PINV2116,307.2
DBT,ACAS,16/07/2023,GOVT SOLICITORS FEES,ODHR,GOVERNMENT LEGAL DEPARTMENT,PINV2175,"26,373.56"
DBT,ACAS,25/08/2023,CAR PARK RENTS,F&G,GOVERNMENT PROPERTY AGENCY,PINV2155,"2,000.00"
DBT,ACAS,25/08/2023,Lease Liability,F&G,GOVERNMENT PROPERTY AGENCY,PINV2155,"49,495.02"
DBT,ACAS,09/08/2023,PROFESSIONAL FEES,F&G,GOVERNMENT PROPERTY AGENCY,PINV2156,"1,785.00"
DBT,ACAS,09/08/2023,PROFESSIONAL FEES,F&G,GOVERNMENT PROPERTY AGENCY,PINV2156,810.34
DBT,ACAS,09/08/2023,RATES,F&G,GOVERNMENT PROPERTY AGENCY,PINV2156,"1,790.24"
DBT,ACAS,09/08/2023,SERVICE CHARGES,F&G,GOVERNMENT PROPERTY AGENCY,PINV2156,678.39
DBT,ACAS,09/08/2023,Lease Liability,F&G,GOVERNMENT PROPERTY AGENCY,PINV2156,"4,427.00"
DBT,ACAS,09/08/2023,FACILITIES MANAGEMENT,F&G,GOVERNMENT PROPERTY AGENCY,PINV2156,"2,228.63"
DBT,ACAS,04/10/2023,PROFESSIONAL FEES,F&G,GOVERNMENT PROPERTY AGENCY,PINV2165,"3,450.00"
DBT,ACAS,24/10/2023,CAR PARK RENTS,F&G,GOVERNMENT PROPERTY AGENCY,PINV2173,"4,400.00"
DBT,ACAS,24/10/2023,CAR PARK RENTS,F&G,GOVERNMENT PROPERTY AGENCY,PINV2174,400
DBT,ACAS,24/10/2023,PROFESSIONAL FEES,F&G,GOVERNMENT PROPERTY AGENCY,PINV2176,"2,581.99"
DBT,ACAS,29/09/2023,TRAINERS & GUEST SPEAKERS,DDAT,HASSELL INCLUSION,POIN1800,"1,800.00"
DBT,ACAS,08/09/2023,PUBLICITY,STRATEGY,HH GLOBAL,PINV2164,"14,127.59"
DBT,ACAS,05/10/2023,HMRC CHARGES,CENTRE,HMRC,PINV2129,"18,162.20"
DBT,ACAS,05/10/2023,HMRC CHARGES,CENTRE,HMRC,PINV2129,"1,133.12"
DBT,ACAS,05/10/2023,EXTERNAL LEARNING,ODHR,HOLYROOD COMMUNICATIONS LTD,PINV2102,294
DBT,ACAS,06/09/2023,EVALUATION OF OPS ACTIVITIES,STRATEGY,I F F RESEARCH,POIN1857,"2,391.60"
DBT,ACAS,11/10/2023,MEMBERSHIP FEES,CO,INVESTORS IN PEOPLE,PINV2132,"5,040.00"
DBT,ACAS,22/09/2023,SOFTWARE & LICENCES,F&G,IRIS SOFTWARE LTD,POIN1828,"2,168.47"
DBT,ACAS,26/10/2023,PROFESSIONAL FEES,DDAT,ISYSTEMS INTEGRATION LTD,POIN1863,"50,990.16"
DBT,ACAS,26/10/2023,PROFESSIONAL FEES,DDAT,ISYSTEMS INTEGRATION LTD,POIN1863,"63,737.70"
DBT,ACAS,26/10/2023,PROFESSIONAL FEES,DDAT,ISYSTEMS INTEGRATION LTD,POIN1863,"12,747.54"
DBT,ACAS,19/10/2023,EXTERNAL LEARNING - CSL,ODHR,KPMG LLP,POIN1843,"2,069.50"
DBT,ACAS,25/10/2023,EXTERNAL LEARNING - CSL,ODHR,KPMG LLP,POIN1856,"2,103.60"
DBT,ACAS,31/08/2023,PROFESSIONAL FEES,DISPUTE,LANGUAGE EMPIRE LTD,POIN1834,"2,485.68"
DBT,ACAS,31/08/2023,PROFESSIONAL FEES,ADVICE,LANGUAGE EMPIRE LTD,POIN1834,"2,485.68"
DBT,ACAS,30/10/2023,EXTERNAL LEARNING,ODHR,LENNOX LEARNING AND DEVELOPMENT LTD,POIN1869,270
DBT,ACAS,19/10/2023,SOFTWARE & LICENCES,DDAT,MATRIX BOOKING LIMITED,POIN1838,648
DBT,ACAS,19/10/2023,SOFTWARE & LICENCES,DDAT,MATRIX BOOKING LIMITED,POIN1838,72
DBT,ACAS,19/10/2023,SOFTWARE & LICENCES,DDAT,MATRIX BOOKING LIMITED,POIN1838,116.64
DBT,ACAS,19/10/2023,SOFTWARE & LICENCES,DDAT,MATRIX BOOKING LIMITED,POIN1838,12.96
DBT,ACAS,19/10/2023,COMPUTER HARDWARE,DDAT,MATRIX BOOKING LIMITED,PINV2149,612
DBT,ACAS,13/10/2023,EXTERNAL LEARNING,ODHR,MEDIA TRAINING LTD,POIN1833,394.8
DBT,ACAS,29/09/2023,AGENCY STAFF,ODHR,MICHAEL PAGE,POIN1799,"1,156.46"
DBT,ACAS,11/10/2023,CONTRACTOR OFF-PAYROLL IN IR35,ODHR,MICHAEL PAGE,POIN1820,"21,317.40"
DBT,ACAS,17/10/2023,AGENCY STAFF,ODHR,MICHAEL PAGE,POIN1829,"1,156.46"
DBT,ACAS,09/10/2023,AGENCY STAFF,ODHR,MICHAEL PAGE,POIN1830,"1,156.46"
DBT,ACAS,24/10/2023,CONTRACTOR OFF-PAYROLL IN IR35,ODHR,MICHAEL PAGE,POIN1847,"4,263.48"
DBT,ACAS,22/09/2023,AGENCY STAFF,ODHR,MICHAEL PAGE,POIN1873,"7,645.50"
DBT,ACAS,02/10/2023,MANAGED SERVICE Off-PAYROLL WK,CAC,MICHAEL PAGE,PINV2094,"1,183.25"
DBT,ACAS,09/10/2023,MANAGED SERVICE Off-PAYROLL WK,CAC,MICHAEL PAGE,PINV2109,"1,183.25"
DBT,ACAS,16/10/2023,MANAGED SERVICE Off-PAYROLL WK,CAC,MICHAEL PAGE,PINV2130,"1,183.25"
DBT,ACAS,25/10/2023,MANAGED SERVICE Off-PAYROLL WK,CAC,MICHAEL PAGE,PINV2171,"1,183.25"
DBT,ACAS,04/10/2023,OTHER PAYROLL COSTS,F&G,MYCSP LTD,POIN1810,358.3
DBT,ACAS,04/10/2023,OTHER PAYROLL COSTS,F&G,MYCSP LTD,POIN1810,0.48
DBT,ACAS,29/09/2023,PERSONAL EXPENSE,ADVICE,NAME / DESCRIPTION WITHHELD,EXPS2502,230.4
DBT,ACAS,29/09/2023,PERSONAL EXPENSE,ADVICE,NAME / DESCRIPTION WITHHELD,EXPS2502,67.05
DBT,ACAS,29/09/2023,PERSONAL EXPENSE,ADVICE,NAME / DESCRIPTION WITHHELD,EXPS2502,7
DBT,ACAS,29/09/2023,PERSONAL EXPENSE,ADVICE,NAME / DESCRIPTION WITHHELD,EXPS2502,15
DBT,ACAS,29/09/2023,PERSONAL EXPENSE,ADVICE,NAME / DESCRIPTION WITHHELD,EXPS2502,105
DBT,ACAS,29/09/2023,PERSONAL EXPENSE,ADVICE,NAME / DESCRIPTION WITHHELD,EXPS2502,10
DBT,ACAS,29/09/2023,PERSONAL EXPENSE,ADVICE,NAME / DESCRIPTION WITHHELD,EXPS2502,10
DBT,ACAS,29/09/2023,PERSONAL EXPENSE,ADVICE,NAME / DESCRIPTION WITHHELD,EXPS2504,53.55
DBT,ACAS,29/09/2023,PERSONAL EXPENSE,ADVICE,NAME / DESCRIPTION WITHHELD,EXPS2504,189.9
DBT,ACAS,29/09/2023,PERSONAL EXPENSE,ADVICE,NAME / DESCRIPTION WITHHELD,EXPS2504,5
DBT,ACAS,29/09/2023,PERSONAL EXPENSE,ADVICE,NAME / DESCRIPTION WITHHELD,EXPS2504,15
DBT,ACAS,03/10/2023,PERSONAL EXPENSE,STRATEGY,NAME / DESCRIPTION WITHHELD,EXPS2515,24
DBT,ACAS,03/10/2023,PERSONAL EXPENSE,STRATEGY,NAME / DESCRIPTION WITHHELD,EXPS2515,12
DBT,ACAS,03/10/2023,PERSONAL EXPENSE,STRATEGY,NAME / DESCRIPTION WITHHELD,EXPS2515,36
DBT,ACAS,03/10/2023,PERSONAL EXPENSE,STRATEGY,NAME / DESCRIPTION WITHHELD,EXPS2515,4.4
DBT,ACAS,03/10/2023,PERSONAL EXPENSE,STRATEGY,NAME / DESCRIPTION WITHHELD,EXPS2515,16.07
DBT,ACAS,03/10/2023,PERSONAL EXPENSE,STRATEGY,NAME / DESCRIPTION WITHHELD,EXPS2515,20
DBT,ACAS,03/10/2023,PERSONAL EXPENSE,STRATEGY,NAME / DESCRIPTION WITHHELD,EXPS2515,10
DBT,ACAS,03/10/2023,PERSONAL EXPENSE,STRATEGY,NAME / DESCRIPTION WITHHELD,EXPS2515,15
DBT,ACAS,03/10/2023,PERSONAL EXPENSE,STRATEGY,NAME / DESCRIPTION WITHHELD,EXPS2515,5
DBT,ACAS,03/10/2023,PERSONAL EXPENSE,STRATEGY,NAME / DESCRIPTION WITHHELD,EXPS2515,5
DBT,ACAS,03/10/2023,PERSONAL EXPENSE,STRATEGY,NAME / DESCRIPTION WITHHELD,EXPS2515,10
DBT,ACAS,03/10/2023,PERSONAL EXPENSE,STRATEGY,NAME / DESCRIPTION WITHHELD,EXPS2515,10
DBT,ACAS,03/10/2023,PERSONAL EXPENSE,STRATEGY,NAME / DESCRIPTION WITHHELD,EXPS2515,30
DBT,ACAS,03/10/2023,PERSONAL EXPENSE,STRATEGY,NAME / DESCRIPTION WITHHELD,EXPS2515,10
DBT,ACAS,03/10/2023,PERSONAL EXPENSE,STRATEGY,NAME / DESCRIPTION WITHHELD,EXPS2515,10
DBT,ACAS,03/10/2023,PERSONAL EXPENSE,STRATEGY,NAME / DESCRIPTION WITHHELD,EXPS2515,105
DBT,ACAS,03/10/2023,PERSONAL EXPENSE,STRATEGY,NAME / DESCRIPTION WITHHELD,EXPS2515,35
DBT,ACAS,03/10/2023,PERSONAL EXPENSE,STRATEGY,NAME / DESCRIPTION WITHHELD,EXPS2515,35
DBT,ACAS,03/10/2023,PERSONAL EXPENSE,ADVICE,NAME / DESCRIPTION WITHHELD,EXPS2519,231.3
DBT,ACAS,03/10/2023,PERSONAL EXPENSE,ADVICE,NAME / DESCRIPTION WITHHELD,EXPS2519,8.25
DBT,ACAS,03/10/2023,PERSONAL EXPENSE,ADVICE,NAME / DESCRIPTION WITHHELD,EXPS2519,18.3
DBT,ACAS,03/10/2023,PERSONAL EXPENSE,ADVICE,NAME / DESCRIPTION WITHHELD,EXPS2519,20
DBT,ACAS,03/10/2023,PERSONAL EXPENSE,ADVICE,NAME / DESCRIPTION WITHHELD,EXPS2519,40
DBT,ACAS,03/10/2023,PERSONAL EXPENSE,ADVICE,NAME / DESCRIPTION WITHHELD,EXPS2519,10
DBT,ACAS,04/10/2023,PERSONAL EXPENSE,ODHR,NAME / DESCRIPTION WITHHELD,EXPS2526,70
DBT,ACAS,04/10/2023,PERSONAL EXPENSE,ODHR,NAME / DESCRIPTION WITHHELD,EXPS2526,88.75
DBT,ACAS,04/10/2023,PERSONAL EXPENSE,ODHR,NAME / DESCRIPTION WITHHELD,EXPS2526,20
DBT,ACAS,04/10/2023,PERSONAL EXPENSE,ODHR,NAME / DESCRIPTION WITHHELD,EXPS2526,25
DBT,ACAS,04/10/2023,PERSONAL EXPENSE,ODHR,NAME / DESCRIPTION WITHHELD,EXPS2526,140
DBT,ACAS,04/10/2023,PERSONAL EXPENSE,STRATEGY,NAME / DESCRIPTION WITHHELD,EXPS2529,12.8
DBT,ACAS,04/10/2023,PERSONAL EXPENSE,STRATEGY,NAME / DESCRIPTION WITHHELD,EXPS2529,27.2
DBT,ACAS,04/10/2023,PERSONAL EXPENSE,STRATEGY,NAME / DESCRIPTION WITHHELD,EXPS2529,48.44
DBT,ACAS,04/10/2023,PERSONAL EXPENSE,STRATEGY,NAME / DESCRIPTION WITHHELD,EXPS2529,174.6
DBT,ACAS,04/10/2023,PERSONAL EXPENSE,STRATEGY,NAME / DESCRIPTION WITHHELD,EXPS2529,5
DBT,ACAS,04/10/2023,PERSONAL EXPENSE,STRATEGY,NAME / DESCRIPTION WITHHELD,EXPS2529,5
DBT,ACAS,04/10/2023,PERSONAL EXPENSE,STRATEGY,NAME / DESCRIPTION WITHHELD,EXPS2529,5
DBT,ACAS,04/10/2023,PERSONAL EXPENSE,STRATEGY,NAME / DESCRIPTION WITHHELD,EXPS2529,25
DBT,ACAS,04/10/2023,PERSONAL EXPENSE,STRATEGY,NAME / DESCRIPTION WITHHELD,EXPS2529,35
DBT,ACAS,04/10/2023,PERSONAL EXPENSE,STRATEGY,NAME / DESCRIPTION WITHHELD,EXPS2529,35
DBT,ACAS,05/10/2023,PERSONAL EXPENSE,ODHR,NAME / DESCRIPTION WITHHELD,EXPS2535,18
DBT,ACAS,05/10/2023,PERSONAL EXPENSE,ODHR,NAME / DESCRIPTION WITHHELD,EXPS2535,21
DBT,ACAS,05/10/2023,PERSONAL EXPENSE,ODHR,NAME / DESCRIPTION WITHHELD,EXPS2535,109.63
DBT,ACAS,05/10/2023,PERSONAL EXPENSE,ODHR,NAME / DESCRIPTION WITHHELD,EXPS2535,5
DBT,ACAS,05/10/2023,PERSONAL EXPENSE,ODHR,NAME / DESCRIPTION WITHHELD,EXPS2535,35
DBT,ACAS,05/10/2023,PERSONAL EXPENSE,ODHR,NAME / DESCRIPTION WITHHELD,EXPS2535,10
DBT,ACAS,05/10/2023,PERSONAL EXPENSE,ODHR,NAME / DESCRIPTION WITHHELD,EXPS2535,10
DBT,ACAS,05/10/2023,PERSONAL EXPENSE,ODHR,NAME / DESCRIPTION WITHHELD,EXPS2535,10
DBT,ACAS,05/10/2023,PERSONAL EXPENSE,ODHR,NAME / DESCRIPTION WITHHELD,EXPS2535,70
DBT,ACAS,05/10/2023,PERSONAL EXPENSE,ODHR,NAME / DESCRIPTION WITHHELD,EXPS2535,20
DBT,ACAS,05/10/2023,PERSONAL EXPENSE,ODHR,NAME / DESCRIPTION WITHHELD,EXPS2535,20
DBT,ACAS,02/10/2023,PERSONAL EXPENSE,DISPUTE,NAME / DESCRIPTION WITHHELD,EXPS2536,85.5
DBT,ACAS,02/10/2023,PERSONAL EXPENSE,DISPUTE,NAME / DESCRIPTION WITHHELD,EXPS2536,55
DBT,ACAS,02/10/2023,PERSONAL EXPENSE,DISPUTE,NAME / DESCRIPTION WITHHELD,EXPS2536,12.6
DBT,ACAS,02/10/2023,PERSONAL EXPENSE,DISPUTE,NAME / DESCRIPTION WITHHELD,EXPS2536,25.1
DBT,ACAS,02/10/2023,PERSONAL EXPENSE,DISPUTE,NAME / DESCRIPTION WITHHELD,EXPS2536,12.6
DBT,ACAS,02/10/2023,PERSONAL EXPENSE,DISPUTE,NAME / DESCRIPTION WITHHELD,EXPS2536,12.6
DBT,ACAS,02/10/2023,PERSONAL EXPENSE,DISPUTE,NAME / DESCRIPTION WITHHELD,EXPS2536,12.6
DBT,ACAS,02/10/2023,PERSONAL EXPENSE,DISPUTE,NAME / DESCRIPTION WITHHELD,EXPS2536,7.8
DBT,ACAS,02/10/2023,PERSONAL EXPENSE,DISPUTE,NAME / DESCRIPTION WITHHELD,EXPS2536,15
DBT,ACAS,02/10/2023,PERSONAL EXPENSE,DISPUTE,NAME / DESCRIPTION WITHHELD,EXPS2536,5
DBT,ACAS,02/10/2023,PERSONAL EXPENSE,DISPUTE,NAME / DESCRIPTION WITHHELD,EXPS2536,10
DBT,ACAS,02/10/2023,PERSONAL EXPENSE,DISPUTE,NAME / DESCRIPTION WITHHELD,EXPS2536,10
DBT,ACAS,02/10/2023,PERSONAL EXPENSE,DISPUTE,NAME / DESCRIPTION WITHHELD,EXPS2536,10
DBT,ACAS,02/10/2023,PERSONAL EXPENSE,DISPUTE,NAME / DESCRIPTION WITHHELD,EXPS2536,10
DBT,ACAS,02/10/2023,PERSONAL EXPENSE,DISPUTE,NAME / DESCRIPTION WITHHELD,EXPS2536,10
DBT,ACAS,02/10/2023,PERSONAL EXPENSE,DISPUTE,NAME / DESCRIPTION WITHHELD,EXPS2536,25
DBT,ACAS,02/10/2023,PERSONAL EXPENSE,DISPUTE,NAME / DESCRIPTION WITHHELD,EXPS2536,5
DBT,ACAS,02/10/2023,PERSONAL EXPENSE,DISPUTE,NAME / DESCRIPTION WITHHELD,EXPS2536,35
DBT,ACAS,02/10/2023,PERSONAL EXPENSE,DISPUTE,NAME / DESCRIPTION WITHHELD,EXPS2536,72.66
DBT,ACAS,06/10/2023,PERSONAL EXPENSE,ADVICE,NAME / DESCRIPTION WITHHELD,EXPS2537,574.2
DBT,ACAS,06/10/2023,PERSONAL EXPENSE,ADVICE,NAME / DESCRIPTION WITHHELD,EXPS2537,12
DBT,ACAS,06/10/2023,PERSONAL EXPENSE,ADVICE,NAME / DESCRIPTION WITHHELD,EXPS2537,10
DBT,ACAS,06/10/2023,PERSONAL EXPENSE,ADVICE,NAME / DESCRIPTION WITHHELD,EXPS2537,70
DBT,ACAS,06/10/2023,PERSONAL EXPENSE,ADVICE,NAME / DESCRIPTION WITHHELD,EXPS2537,5
DBT,ACAS,06/10/2023,PERSONAL EXPENSE,ADVICE,NAME / DESCRIPTION WITHHELD,EXPS2537,35
DBT,ACAS,06/10/2023,PERSONAL EXPENSE,ADVICE,NAME / DESCRIPTION WITHHELD,EXPS2537,40
DBT,ACAS,06/10/2023,PERSONAL EXPENSE,ADVICE,NAME / DESCRIPTION WITHHELD,EXPS2537,10
DBT,ACAS,06/10/2023,PERSONAL EXPENSE,ADVICE,NAME / DESCRIPTION WITHHELD,EXPS2537,25
DBT,ACAS,09/10/2023,PERSONAL EXPENSE,ADVICE,NAME / DESCRIPTION WITHHELD,EXPS2544,261
DBT,ACAS,09/10/2023,PERSONAL EXPENSE,ADVICE,NAME / DESCRIPTION WITHHELD,EXPS2544,22.5
DBT,ACAS,09/10/2023,PERSONAL EXPENSE,ADVICE,NAME / DESCRIPTION WITHHELD,EXPS2544,15
DBT,ACAS,09/10/2023,PERSONAL EXPENSE,ADVICE,NAME / DESCRIPTION WITHHELD,EXPS2544,105
DBT,ACAS,09/10/2023,PERSONAL EXPENSE,ADVICE,NAME / DESCRIPTION WITHHELD,EXPS2544,20
DBT,ACAS,09/10/2023,PERSONAL EXPENSE,ADVICE,NAME / DESCRIPTION WITHHELD,EXPS2544,20
DBT,ACAS,09/10/2023,PERSONAL EXPENSE,ADVICE,NAME / DESCRIPTION WITHHELD,EXPS2544,72.66
DBT,ACAS,13/10/2023,PERSONAL EXPENSE,ADVICE,NAME / DESCRIPTION WITHHELD,EXPS2573,177.3
DBT,ACAS,13/10/2023,PERSONAL EXPENSE,ADVICE,NAME / DESCRIPTION WITHHELD,EXPS2573,10
DBT,ACAS,13/10/2023,PERSONAL EXPENSE,ADVICE,NAME / DESCRIPTION WITHHELD,EXPS2573,70
DBT,ACAS,13/10/2023,PERSONAL EXPENSE,ADVICE,NAME / DESCRIPTION WITHHELD,EXPS2573,20
DBT,ACAS,20/10/2023,PERSONAL EXPENSE,ADVICE,NAME / DESCRIPTION WITHHELD,EXPS2600,127.54
DBT,ACAS,20/10/2023,PERSONAL EXPENSE,ADVICE,NAME / DESCRIPTION WITHHELD,EXPS2600,70
DBT,ACAS,20/10/2023,PERSONAL EXPENSE,ADVICE,NAME / DESCRIPTION WITHHELD,EXPS2600,5
DBT,ACAS,20/10/2023,PERSONAL EXPENSE,ADVICE,NAME / DESCRIPTION WITHHELD,EXPS2600,35
DBT,ACAS,20/10/2023,PERSONAL EXPENSE,ADVICE,NAME / DESCRIPTION WITHHELD,EXPS2600,72.66
DBT,ACAS,25/10/2023,PERSONAL EXPENSE,ADVICE,NAME / DESCRIPTION WITHHELD,EXPS2607,175.5
DBT,ACAS,25/10/2023,PERSONAL EXPENSE,ADVICE,NAME / DESCRIPTION WITHHELD,EXPS2607,77.6
DBT,ACAS,25/10/2023,PERSONAL EXPENSE,ADVICE,NAME / DESCRIPTION WITHHELD,EXPS2607,50
DBT,ACAS,25/10/2023,PERSONAL EXPENSE,ADVICE,NAME / DESCRIPTION WITHHELD,EXPS2607,20
DBT,ACAS,26/10/2023,PERSONAL EXPENSE,ADVICE,NAME / DESCRIPTION WITHHELD,EXPS2614,285.3
DBT,ACAS,26/10/2023,PERSONAL EXPENSE,ADVICE,NAME / DESCRIPTION WITHHELD,EXPS2614,115.6
DBT,ACAS,26/10/2023,PERSONAL EXPENSE,ADVICE,NAME / DESCRIPTION WITHHELD,EXPS2614,5
DBT,ACAS,26/10/2023,PERSONAL EXPENSE,ADVICE,NAME / DESCRIPTION WITHHELD,EXPS2614,10
DBT,ACAS,26/10/2023,PERSONAL EXPENSE,ADVICE,NAME / DESCRIPTION WITHHELD,EXPS2614,60
DBT,ACAS,26/10/2023,PERSONAL EXPENSE,ADVICE,NAME / DESCRIPTION WITHHELD,EXPS2614,19.8
DBT,ACAS,26/10/2023,PERSONAL EXPENSE,ADVICE,NAME / DESCRIPTION WITHHELD,EXPS2614,57.8
DBT,ACAS,26/10/2023,PERSONAL EXPENSE,ADVICE,NAME / DESCRIPTION WITHHELD,EXPS2614,20
DBT,ACAS,26/10/2023,PERSONAL EXPENSE,ADVICE,NAME / DESCRIPTION WITHHELD,EXPS2614,23.4
DBT,ACAS,26/10/2023,PERSONAL EXPENSE,ADVICE,NAME / DESCRIPTION WITHHELD,EXPS2614,9.9
DBT,ACAS,26/10/2023,PERSONAL EXPENSE,ADVICE,NAME / DESCRIPTION WITHHELD,EXPS2614,28.9
DBT,ACAS,26/10/2023,PERSONAL EXPENSE,ADVICE,NAME / DESCRIPTION WITHHELD,EXPS2614,10
DBT,ACAS,26/10/2023,PERSONAL EXPENSE,ADVICE,NAME / DESCRIPTION WITHHELD,EXPS2614,50.4
DBT,ACAS,26/10/2023,PERSONAL EXPENSE,ADVICE,NAME / DESCRIPTION WITHHELD,EXPS2614,5
DBT,ACAS,30/10/2023,PERSONAL EXPENSE,DISPUTE,NAME / DESCRIPTION WITHHELD,EXPS2624,"1,403.08"
DBT,ACAS,30/10/2023,PERSONAL EXPENSE,DISPUTE,NAME / DESCRIPTION WITHHELD,EXPS2624,45
DBT,ACAS,30/10/2023,PERSONAL EXPENSE,CAC,NAME / DESCRIPTION WITHHELD,EXPS2640,106.03
DBT,ACAS,30/10/2023,PERSONAL EXPENSE,CAC,NAME / DESCRIPTION WITHHELD,EXPS2640,63.2
DBT,ACAS,30/10/2023,PERSONAL EXPENSE,CAC,NAME / DESCRIPTION WITHHELD,EXPS2640,24.75
DBT,ACAS,30/10/2023,PERSONAL EXPENSE,CAC,NAME / DESCRIPTION WITHHELD,EXPS2640,55
DBT,ACAS,30/10/2023,PERSONAL EXPENSE,CAC,NAME / DESCRIPTION WITHHELD,EXPS2640,72.66
DBT,ACAS,03/10/2023,EXTERNAL LEARNING,ODHR,NOUS GROUP (UK) LTD,POIN1812,"2,400.00"
DBT,ACAS,26/10/2023,REFUNDS,ADVICE,OAKTREE SPECIAL SCHOOL,PINV2178,270
DBT,ACAS,18/10/2023,EXTERNAL LEARNING,ODHR,PEOPLE RESULTS LTD,PINV2167,"3,885.06"
DBT,ACAS,26/09/2023,EXTERNAL LEARNING,ODHR,QAIQ,POIN1795,"4,314.00"
DBT,ACAS,26/09/2023,EXTERNAL LEARNING,ODHR,QAIQ,POIN1796,"4,794.00"
DBT,ACAS,31/08/2023,RECORDS STORAGE,DDAT,RESTORE RECORDS MANAGEMENT,POIN1813,272.02
DBT,ACAS,31/08/2023,RECORDS STORAGE,DDAT,RESTORE RECORDS MANAGEMENT,POIN1813,49.16
DBT,ACAS,28/09/2023,EXTERNAL LEARNING,ODHR,ROYAL NATIONAL INSTITUTE FOR THE DEAF,POIN1804,299.4
DBT,ACAS,28/09/2023,EXTERNAL LEARNING,ODHR,ROYAL NATIONAL INSTITUTE FOR THE DEAF,POIN1804,299.4
DBT,ACAS,28/10/2023,SOFTWARE & LICENCES,DDAT,SAFE APPS LIMITED,PINV2186,"2,340.00"
DBT,ACAS,02/10/2023,PROFESSIONAL FEES,F&G,SCARLET DESIGN,PINV2121,"2,096.64"
DBT,ACAS,01/10/2023,PROFESSIONAL FEES,DDAT,SIRIUS OPEN SOURCE LIMITED,PINV2112,"2,560.87"
DBT,ACAS,30/09/2023,EVALUATION OF OPS ACTIVITIES,ADVICE,SNAP SURVEYS LTD,POIN1831,555
DBT,ACAS,18/07/2023,HARDWARE ADDITIONS,DDAT,SPECIALIST COMPUTER CENTRES,POIN1817,"1,492.18"
DBT,ACAS,18/07/2023,HARDWARE ADDITIONS,DDAT,SPECIALIST COMPUTER CENTRES,POIN1817,32.33
DBT,ACAS,18/07/2023,SOFTWARE & LICENCES,DDAT,SPECIALIST COMPUTER CENTRES,POIN1818,725.52
DBT,ACAS,28/08/2023,Lease Liability,F&G,STUDENT LOANS COMPANY LTD,PINV2097,"41,400.00"
DBT,ACAS,27/10/2023,MOBILE PHONES,DDAT,TELEFONICA UK LTD (O2),POIN1865,449.03
DBT,ACAS,27/10/2023,MOBILE PHONES,DDAT,TELEFONICA UK LTD (O2),POIN1865,49.89
DBT,ACAS,09/10/2023,MOBILE PHONES,DDAT,TELEFONICA UK LTD (O2),PINV2113,"3,057.27"
DBT,ACAS,09/10/2023,MOBILE PHONES,DDAT,TELEFONICA UK LTD (O2),PINV2113,339.7
DBT,ACAS,18/10/2023,EXTERNAL LEARNING,ODHR,THOMPSONS SOLICITORS LLP,POIN1840,"2,100.00"
DBT,ACAS,30/09/2023,PROFESSIONAL FEES,DDAT,TISSKI LTD,POIN1805,"34,650.00"
DBT,ACAS,30/09/2023,PROFESSIONAL FEES,DDAT,TISSKI LTD,POIN1808,900
DBT,ACAS,30/09/2023,PROFESSIONAL FEES,DDAT,TISSKI LTD,POIN1808,"1,350.00"
DBT,ACAS,30/09/2023,PROFESSIONAL FEES,DDAT,TISSKI LTD,POIN1808,"8,550.00"
DBT,ACAS,30/09/2023,PROFESSIONAL FEES,DDAT,TISSKI LTD,POIN1808,"2,250.00"
DBT,ACAS,30/09/2023,PROFESSIONAL FEES,DDAT,TISSKI LTD,POIN1808,"1,350.00"
DBT,ACAS,30/09/2023,PROFESSIONAL FEES,DDAT,TISSKI LTD,POIN1809,"2,700.00"
DBT,ACAS,30/10/2023,PROFESSIONAL FEES,DDAT,TISSKI LTD,POIN1868,"2,400.00"
DBT,ACAS,30/10/2023,PROFESSIONAL FEES,DDAT,TISSKI LTD,POIN1868,"6,000.00"
DBT,ACAS,30/10/2023,PROFESSIONAL FEES,DDAT,TISSKI LTD,POIN1868,"7,350.00"
DBT,ACAS,30/10/2023,PROFESSIONAL FEES,DDAT,TISSKI LTD,POIN1868,"-2,400.00"
DBT,ACAS,30/10/2023,PROFESSIONAL FEES,DDAT,TISSKI LTD,POIN1868,"-6,000.00"
DBT,ACAS,30/10/2023,PROFESSIONAL FEES,DDAT,TISSKI LTD,POIN1868,"-7,350.00"
DBT,ACAS,30/10/2023,PROFESSIONAL FEES,DDAT,TISSKI LTD,POIN1871,"5,400.00"
DBT,ACAS,11/10/2023,EXTERNAL LEARNING,ODHR,TOTAL POLITICS GROUP,POIN1821,300
DBT,ACAS,18/10/2023,EXTERNAL LEARNING,ODHR,TOTAL POLITICS GROUP,POIN1837,"1,200.00"
DBT,ACAS,25/10/2023,EXTERNAL LEARNING,ODHR,TOTAL POLITICS GROUP,POIN1855,300
DBT,ACAS,25/10/2023,EXTERNAL LEARNING,ODHR,TOTAL POLITICS GROUP,POIN1855,300
DBT,ACAS,30/09/2023,OCCUPATIONAL HEALTH SERVICE,ODHR,TP HEALTH LTD,PINV2093,778.8
DBT,ACAS,12/10/2023,EXTERNAL LEARNING,ODHR,TRACY MOUNTAIN CONSULTANCY LIMITED,POIN1822,350
DBT,ACAS,12/10/2023,EXTERNAL LEARNING,ODHR,TRACY MOUNTAIN CONSULTANCY LIMITED,POIN1822,250
DBT,ACAS,12/10/2023,EXTERNAL LEARNING,ODHR,TRACY MOUNTAIN CONSULTANCY LIMITED,POIN1822,50
DBT,ACAS,24/10/2023,PROFESSIONAL FEES,DDAT,UNIFY HOLDING UK 1 LIMITED,POIN1851,"4,930.79"
DBT,ACAS,24/10/2023,PROFESSIONAL FEES,DDAT,UNIFY HOLDING UK 1 LIMITED,POIN1852,"4,930.79"
DBT,ACAS,24/10/2023,SOFTWARE & LICENCES,DDAT,UNIFY HOLDING UK 1 LIMITED,POIN1859,"1,797.77"
DBT,ACAS,24/10/2023,SOFTWARE & LICENCES,DDAT,UNIFY HOLDING UK 1 LIMITED,POIN1859,"2,406.00"
DBT,ACAS,24/10/2023,SOFTWARE & LICENCES,DDAT,UNIFY HOLDING UK 1 LIMITED,POIN1859,"10,053.73"
DBT,ACAS,24/10/2023,TELEPHONES,DDAT,UNIFY HOLDING UK 1 LIMITED,POIN1859,92.5
DBT,ACAS,24/10/2023,TELEPHONES,DDAT,UNIFY HOLDING UK 1 LIMITED,POIN1859,33.42
DBT,ACAS,24/10/2023,SOFTWARE & LICENCES,DDAT,UNIFY HOLDING UK 1 LIMITED,POIN1860,"1,833.19"
DBT,ACAS,24/10/2023,SOFTWARE & LICENCES,DDAT,UNIFY HOLDING UK 1 LIMITED,POIN1860,"2,406.00"
DBT,ACAS,24/10/2023,SOFTWARE & LICENCES,DDAT,UNIFY HOLDING UK 1 LIMITED,POIN1860,"10,554.14"
DBT,ACAS,24/10/2023,TELEPHONES,DDAT,UNIFY HOLDING UK 1 LIMITED,POIN1860,85.35
DBT,ACAS,06/10/2023,OTHER RESEARCH,STRATEGY,UNIVERSITY OF CENTRAL LANCASHIRE,POIN1814,"3,600.00"
DBT,ACAS,12/07/2023,COMPUTER HARDWARE,DDAT,UPGRADE OPTIONS LIMITED,POIN1835,"1,101.60"
DBT,ACAS,12/07/2023,COMPUTER HARDWARE,DDAT,UPGRADE OPTIONS LIMITED,POIN1835,122.4
DBT,ACAS,30/09/2023,PROFESSIONAL FEES,DDAT,VERSION 1 SOLUTIONS LTD,POIN1816,"2,860.19"
DBT,ACAS,30/09/2023,PROFESSIONAL FEES,DDAT,VERSION 1 SOLUTIONS LTD,POIN1816,"3,277.71"
DBT,ACAS,12/10/2023,PROFESSIONAL FEES,DDAT,VERSION 1 SOLUTIONS LTD,POIN1823,"6,490.00"
DBT,ACAS,24/10/2023,PROFESSIONAL FEES,DDAT,VERSION 1 SOLUTIONS LTD,POIN1864,"2,109.26"
DBT,ACAS,03/10/2023,PROFESSIONAL FEES,DDAT,W3 PARTNERSHIP LTD,PINV2111,"4,784.61"
DBT,ACAS,20/10/2023,EXTERNAL LEARNING,ODHR,WESTMINSTER FORUM PROJECTS,PINV2161,312
DBT,ACAS,31/08/2023,EVALUATION OF OPS ACTIVITIES,STRATEGY,YOUGOV PLC,PINV2114,"8,496.00"
DBT,ACAS,23/09/2023,SOFTWARE & LICENCES,DDAT,ZOOM VIDEO COMMUNICATIONS INC,POIN1848,"2,050.00"
DBT,ACAS,23/09/2023,SOFTWARE & LICENCES,DDAT,ZOOM VIDEO COMMUNICATIONS INC,POIN1848,1.35
DBT,ACAS,23/10/2023,SOFTWARE & LICENCES,DDAT,ZOOM VIDEO COMMUNICATIONS INC,POIN1862,"2,051.35"
